{"text_format":"3","workbook":"xlsx","n_sheets":6,"sheets":["Ley 1712","Decreto103","Resolución 3564","ACTA CONTRALORIA","RESULTADOS","LISTA"],"not_rendered":{"charts":8,"external_links":1,"defined_names":3,"comments":1},"read":"whole","date_system":"1900"}

{"sheet":"Ley 1712","index":0,"n_rows":112,"n_cols":4,"rows_kept":112,"hidden":true,"merged":[[0,0,0,1],[1,0,1,1],[1,2,1,3],[2,0,2,1],[4,0,4,1],[6,0,13,0],[14,0,14,1],[15,0,15,1],[16,0,16,1],[18,0,18,1],[19,0,30,0],[19,2,20,2],[19,3,20,3],[31,0,36,0],[31,2,32,2],[31,3,32,3],[37,0,37,1],[38,0,43,0],[38,2,39,2],[42,2,43,2],[45,0,45,1],[48,0,52,0],[48,2,49,2],[48,3,49,3],[53,0,53,1],[54,0,54,1],[55,0,58,0],[55,2,56,2],[55,3,56,3],[59,0,59,1],[60,0,69,0],[60,2,61,2],[60,3,61,3],[70,0,70,1],[72,0,74,0],[76,0,76,1],[77,0,77,1],[78,0,91,0],[78,2,79,2],[78,3,79,3],[94,0,94,1],[95,0,96,0],[95,2,96,2],[95,3,96,3],[97,0,102,0],[103,0,103,1],[106,0,106,1],[107,0,107,1]]}
["LEY 1712 DE 2014"]
["TÍTULO II",null,"Cumple"]
["DE LA PUBLICIDAD Y DEL CONTENIDO DE LA INFORMACIÓN",null,"Resultado","Ubicación en el Sitio Web"]
["Artículo  7°. Disponibilidad de la Información. ","En virtud de los principios señalados, deberá estar a disposición del público la información a la que hace referencia la presente ley, a través de medios físicos, remotos o locales de comunicación electrónica. Los sujetos obligados deberán tener a disposición de las personas interesadas dicha información en la Web, a fin de que estas puedan obtener la información, de manera directa o mediante impresiones. Asimismo, estos deberán proporcionar apoyo a los usuarios que lo requieran y proveer todo tipo de asistencia respecto de los trámites y servicios que presten.","No Aplica"]
["Parágrafo. Se permite en todo caso la retransmisión de televisión por internet cuando el contenido sea información pública de entidades del Estado o noticias al respecto.",null,"No Aplica"]
["Artículo  8°. Criterio diferencial de accesibilidad. ","Con el objeto de facilitar que las poblaciones específicas accedan a la información que particularmente las afecte, los sujetos obligados, a solicitud de las autoridades de las comunidades, divulgarán la información pública en diversos idiomas y lenguas y elaborarán formatos alternativos comprensibles para dichos grupos. Deberá asegurarse el acceso a esa información a los distintos grupos étnicos y culturales del país y en especial se adecuarán los medios de comunicación para que faciliten el acceso a las personas que se encuentran en situación de discapacidad.","No Aplica"]
["Artículo  9°. Información mínima obligatoria respecto a la estructura del sujeto obligado. ","Todo sujeto obligado deberá publicar la siguiente información mínima obligatoria de manera proactiva en los sistemas de información del Estado o herramientas que lo sustituyan:","No Aplica"]
[null,"a) La descripción de su estructura orgánica, funciones y deberes, la ubicación de sus sedes y áreas, divisiones o departamentos, y sus horas de atención al público;","No Aplica"]
[null,"b) Su presupuesto general, ejecución presupuestal histórica anual y planes de gasto público para cada año fiscal, de conformidad con el artículo 74 de la Ley 1474 de 2011;","No Aplica"]
[null,"c) Un directorio que incluya el cargo, direcciones de correo electrónico y teléfono del despacho de los empleados y funcionarios y las escalas salariales correspondientes a las categorías de todos los servidores que trabajan en el sujeto obligado, de conformidad con el formato de información de servidores públicos y contratistas;","No Aplica"]
[null,"d) Todas las normas generales y reglamentarias, políticas, lineamientos o manuales, las metas y objetivos de las unidades administrativas de conformidad con sus programas operativos y los resultados de las auditorías al ejercicio presupuestal e indicadores de desempeño;","No","Se insta a que las políticas y lineamientos que trata la Resolución 3564 de 2015 en su anexo 1 punto 6.1 literal a y la Ley 1712 de 2014 en su artículo 9 literal d, se incluyan en la sección de\nTransparencia. Se insta a publicar el av nce de las metas, objetivos e indicadores de gestión y/o desempeño de acuerdo a lo que les aplique según lo que señala la Resolución 3564 de 2015 en su anexo 1 punto 6.4 y la Ley 1712 de 2014 en su artículo 9 literal d)"]
[null," e) Su respectivo plan de compras anual, así como las contrataciones adjudicadas para la correspondiente vigencia en lo relacionado con funcionamiento e inversión, las obras públicas, los bienes adquiridos, arrendados y en caso de los servicios de estudios o investigaciones deberá señalarse el tema específico, de conformidad con el artículo 74 de la Ley 1474 de 2011. En el caso de las personas naturales con contratos de prestación de servicios, deberá publicarse el objeto del contrato, monto de los honorarios y direcciones de correo electrónico, de conformidad con el formato de información de servidores públicos y contratistas;","No Aplica"]
[null,"f) Los plazos de cumplimiento de los contratos;","No Aplica"]
[null,"g) Publicar el Plan Anticorrupción y de Atención al Ciudadano, de conformidad con el artículo 73 de la Ley 1474 de 2011.","No Aplica"]
["Parágrafo 1°. La información a que se refiere este artículo deberá publicarse de tal forma que facilite su uso y comprensión por las personas, y que permita asegurar su calidad, veracidad, oportunidad y confiabilidad.",null,"No Aplica"]
["Parágrafo  2°. En relación a los literales c) y e) del presente artículo, el Departamento Administrativo de la Función Pública establecerá un formato de información de los servidores públicos y de personas naturales con contratos de prestación de servicios, el cual contendrá los nombres y apellidos completos, ciudad de nacimiento, formación académica, experiencia laboral y profesional de los funcionarios y de los contratistas. Se omitirá cualquier información que afecte la privacidad y el buen nombre de los servidores públicos y contratistas, en los términos definidos por la Constitución y la ley.",null,"No Aplica"]
["Parágrafo 3°. Sin perjuicio a lo establecido en el presente artículo, los sujetos obligados deberán observar lo establecido por la estrategia de gobierno en línea, o la que haga sus veces, en cuanto a la publicación y divulgación de la información.",null,"No Aplica"]
["Artículo  10. Publicidad de la contratación. ","En el caso de la información de contratos indicada en el artículo 9° literal e), tratándose de contrataciones sometidas al régimen de contratación estatal, cada entidad publicará en el medio electrónico institucional sus contrataciones en curso y un vínculo al sistema electrónico para la contratación pública o el que haga sus veces, a través del cual podrá accederse directamente a la información correspondiente al respectivo proceso contractual, en aquellos que se encuentren sometidas a dicho sistema, sin excepción.","No Aplica"]
["Parágrafo. Los sujetos obligados deberán actualizar la información a la que se refiere el artículo 9°, mínimo cada mes."]
["Artículo  11. Información mínima obligatoria respecto a servicios, procedimientos y funcionamiento del sujeto obligado. ","Todo sujeto obligado deberá publicar la siguiente información mínima obligatoria de manera proactiva:","No Aplica"]
[null,"a) Detalles pertinentes sobre todo servicio que brinde directamente al público, incluyendo normas, formularios y protocolos de atención;"]
[null,"b) Toda la información correspondiente a los trámites que se pueden agotar en la entidad, incluyendo la normativa relacionada, el proceso, los costos asociados y los distintos formatos o formularios requeridos;","No Aplica"]
[null,"c) Una descripción de los procedimientos que se siguen para tomar decisiones en las diferentes áreas;","No Aplica"]
[null,"d) El contenido de toda decisión y/o política que haya adoptado y afecte al público, junto con sus fundamentos y toda interpretación autorizada de ellas;","No Aplica"]
[null,"e) Todos los informes de gestión, evaluación y auditoría del sujeto obligado;","No Aplica"]
[null,"f) Todo mecanismo interno y externo de supervisión, notificación y vigilancia pertinente del sujeto obligado;","No Aplica"]
[null," g) Sus procedimientos, lineamientos, políticas en materia de adquisiciones y compras, así como todos los datos de adjudicación y ejecución de contratos, incluidos concursos y licitaciones;","No Aplica"]
[null," h) Todo mecanismo de presentación directa de solicitudes, quejas y reclamos a disposición del público en relación con acciones u omisiones del sujeto obligado, junto con un informe de todas las solicitudes, denuncias y los tiempos de respuesta del sujeto obligado;","No Aplica"]
[null,"i) Todo mecanismo o procedimiento por medio del cual el público pueda participar en la formulación de la política o el ejercicio de las facultades de ese sujeto obligado;","No Aplica"]
[null,"j) Un registro de publicaciones que contenga los documentos publicados de conformidad con la presente ley y automáticamente disponibles, así como un Registro de Activos de Información;","No"]
[null," k) Los sujetos obligados deberán publicar datos abiertos, para lo cual deberán contemplar las excepciones establecidas en el título 3 de la presente ley. Adicionalmente, para las condiciones técnicas de su publicación, se deberán observar los requisitos que establezca el Gobierno Nacional a través del Ministerio de las Tecnologías de la Información y las Comunicaciones o quien haga sus veces.","No Aplica"]
["Artículo  12. Adopción de esquemas de publicación."," Todo sujeto obligado deberá adoptar y difundir de manera amplia su esquema de publicación, dentro de los seis meses siguientes a la entrada en vigencia de la presente ley. El esquema será difundido a través de su sitio Web, y en su defecto, en los dispositivos de divulgación existentes en su dependencia, incluyendo boletines, gacetas y carteleras. El esquema de publicación deberá establecer:","No Aplica"]
[null,"a) Las clases de información que el sujeto obligado publicará de manera proactiva y que en todo caso deberá comprender la información mínima obligatoria;"]
[null,"b) La manera en la cual publicará dicha información;","No Aplica"]
[null,"c) Otras recomendaciones adicionales que establezca el Ministerio Público;","No Aplica"]
[null,"d) Los cuadros de clasificación documental que faciliten la consulta de los documentos públicos que se conservan en los archivos del respectivo sujeto obligado, de acuerdo con la reglamentación establecida por el Archivo General de la Nación;","No Aplica"]
[null,"e) La periodicidad de la divulgación, acorde a los principios administrativos de la función pública.","No Aplica"]
["Todo sujeto obligado deberá publicar información de conformidad con su esquema de publicación."]
["Artículo  13. Registros de Activos de Información. ","Todo sujeto obligado deberá crear y mantener actualizado el Registro de Activos de Información haciendo un listado de:","No"]
[null,"a) Todas las categorías de información publicada por el sujeto obligado;"]
[null,"b) Todo registro publicado;","No"]
[null,"c) Todo registro disponible para ser solicitado por el público.","No"]
[null,"El Ministerio Público podrá establecer estándares en relación a los Registros Activos de Información.","No"]
[null,"Todo sujeto obligado deberá asegurarse de que sus Registros de Activos de Información cumplan con los estándares establecidos por el Ministerio Público y con aquellos dictados por el Archivo General de la Nación, en relación a la constitución de las Tablas de Retención Documental (TRD) y los inventarios documentales."]
["Artículo  14. Información publicada con anterioridad.  ","Corregido por el art. 1, Decreto Nacional 1862 de 2015. Los sujetos obligados deben garantizar y facilitar a los solicitantes, de la manera más sencilla posible, el acceso a toda la información previamente divulgada. Se publicará esta información en los términos establecidos.","No Aplica"]
["Cuando se dé respuesta a una de las solicitudes aquí previstas, esta deberá hacerse pública de manera proactiva en el sitio Web del sujeto obligado, y en defecto de la existencia de un sitio Web, en los dispositivos de divulgación existentes en su dependencia."]
["Artículo 15. Programa de Gestión Documental."," Dentro de los seis (6) meses siguientes a la entrada en vigencia de la presente ley, los sujetos obligados deberán adoptar un Programa de Gestión Documental en el cual se establezcan los procedimientos y lineamientos necesarios para la producción, distribución, organización, consulta y conservación de los documentos públicos. Este Programa deberá integrarse con las funciones administrativas del sujeto obligado. Deberán observarse los lineamientos y recomendaciones que el Archivo General de la Nación y demás entidades competentes expidan en la materia.","No Aplica"]
["Artículo 16. Archivos. ","En su carácter de centros de información institucional que contribuyen tanto a la eficacia y eficiencia del Estado en el servicio al ciudadano, como a la promoción activa del acceso a la información pública, los sujetos obligados deben asegurarse de que existan dentro de sus entidades procedimientos claros para la creación, gestión, organización y conservación de sus archivos. Los procedimientos adoptados deberán observar los lineamientos que en la materia sean producidos por el Archivo General de la Nación.","No Aplica"]
["Artículo 17. Sistemas de información."," Para asegurar que los sistemas de información electrónica sean efectivamente una herramienta para promover el acceso a la información pública, los sujetos obligados deben asegurar que estos:","No Aplica"]
[null,"a) Se encuentren alineados con los distintos procedimientos y articulados con los lineamientos establecidos en el Programa de Gestión Documental de la entidad;"]
[null,"b) Gestionen la misma información que se encuentre en los sistemas administrativos del sujeto obligado;","No Aplica"]
[null,"c) En el caso de la información de interés público, deberá existir una ventanilla en la cual se pueda acceder a la información en formatos y lenguajes comprensibles para los ciudadanos;","No Aplica"]
[null,"d) Se encuentren alineados con la estrategia de gobierno en línea o de la que haga sus veces.","No Aplica"]
["TÍTULO lll"]
["EXCEPCIONES ACCESO A LA INFORMACIÓN"]
["Artículo 18. Informacón exceptuada por daño de derechos a personas naturales o jurídicas.","Es toda aquella información pública clasificada, cuyo acceso podrá ser rechazado o denegado de manera motivada y por escrito, siempre que el acceso pudiere causar un daño a los siguientes derechos: ","No Aplica"]
[null,"a) El derecho de toda persona a la intimidad, bajo las limitaciones propias que impone la condición de servidor público, en conrcondancia con lo estipiulado."]
[null,"b) El derecho de toda persona a la vida, salud o seguridad;","No Aplica"]
[null,"c) Los secretos comerciales, industriales y profesionales, asi como los estipulados en el parágrafo del artículo 77 de la ley de 2011","No Aplica"]
["Parágrafo. Estas excepciones tiene una duración ilimitada y no deberán aplicarsen cuando la persona natural o jurídica ha consentido en la revelación de sus datos personales o privadas o bien cuando es claro que la inforamción fue entregada como parte de aquella información que debe estar bajo el régimen de publicidad aplicable."]
["Artículo 19. Información exceptuada por daño a los intereses públicos. ","Es toda aquella información pública reservada, cuyo acceso podrá ser rechazado o denegado de manera motivada y por escrito en las sigueintes circunstancias, siempre que dicho acceso estuviere expresamente prohibido por un a norma legal o constitucional:","No Aplica"]
[null,"a) La defensa y seguridad nacional."]
[null,"b) La seguridad pública.","No Aplica"]
[null,"c) Las relaciones internacionales.","No Aplica"]
[null,"d) La prevención, investigación y persecución de los delitos y las faltas I ¡ disciplinarias, mientras que no se haga efectiva la medida de i,aseguramiento o se formule pliego de cargos, según el caso.","No Aplica"]
[null,"e) El debido proceso y la igualdad de las partes en los procesos judiciales.","No Aplica"]
[null,"f) La administración efectiva de la justicia.","No Aplica"]
[null,"g) Los derechos de la infancia y la adolescencia.","No Aplica"]
[null,"h) La estabilidad macroeconómica y financiera del país.","No Aplica"]
[null,"i) La salud pública.","No Aplica"]
["Parágrafo. Se exceptúan también los documentos que contengan las opiniones o puntos de vista que formen parte del proceso deliberativo de los servidores públicos.",null,"No Aplica"]
["Artículo 20. Índice de Información clasificada y reservada. ","Los sujetos obligados deberán mantener un índice -actualizado de los actos, documentos e informaciones calificados como clasificados o reservados, de conformidad a esta ley. El índice incluirá sus denominaciones, la motivación y la individualización del acto en que conste tal calificación.","No"]
["Artículo 21. Divulgación parcial y otras reglas. ","En aquellas circunstancias en que la totalidad de la información contenida en un documento no esté protegida por una excepción contenida en la presente ley, debe hacerse una versión pública que mantenga la reserva únicamente de la parte indispensable. La información pública I que no cae en ningún supuesto de excepción deberá ser entregada a la parte solicitante, así como ser de conocimiento público. La reserva de acceso a la información opera respecto del contenido de un documento público pero no de su existencia.","No Aplica"]
[null,"Ninguna autoridad pública puede negarse a indicar si un documento obra o no en su \npoder o negar la divulgación de un documento.","No Aplica"]
[null,"Las excepciones de acceso a la información contenidas en la presente ley no aplican en casos de violación de derechos humanos o delitos de lesa humanidad, yen todo caso deberán protegerse los derechos de las víctimas de dichas violaciones.","No Aplica"]
["Artículo 22. Excepciones temporales. ","La reserva de las informaciones  amparadas por el artículo 19, no deberá extenderse por un períodO mayor a quince 'Ii\n(15) años.","No Aplica"]
["TÍTULO IV\n"]
["DE LAS GARANTÍAS AL EJERCICIO DEL DERECHO DE ACCESO A LA INFORMACIÓN"]
["Artículo 23 Funciones del Ministerio Público. ","El Ministerio Público será el encargado de velar por el adecuado cumplimiento de las obligaciones estipuladas en la presente ley. Para tal propósito, la Procuraduría General de la Nación en un plazo no mayor a seis meses establecerá una metodología para que aquel cumpla las siguientes funciones y atribuciones:","No Aplica"]
[null,"a) Desarrollar acciones preventivas para el cumplimiento de esta ley."]
[null,"b) Realizar informes sobre el cumplimiento de las decisiones de tutelas sobre acceso\na la información.","No Aplica"]
[null,"c) Publicar las decisiones de tutela y normatividad sobre acceso a la información\npública.","No Aplica"]
[null,"d) Promover el conocimiento y aplicación de la presente ley y sus disposiciones entre los sujetos obligados, así como su comprensión entre el público, teniendo en cuenta criterios diferenciales para su accesibilidad, sobre las materias de su competencia mediante la publicación y difusión de una guía sobre el derecho de acceso a la información.","No Aplica"]
[null,"e) Aplicar las sanciones disciplinarias que la presente ley consagra.","No Aplica"]
[null,"f) Decidir disciplinariamente, en los casos de ejercicio de poder preferente, los casos de faltas o mala conducta derivada del derecho de acceso a la información.","No Aplica"]
[null,"g) Promover la transparencia de la función pública, el acceso y la publicidad de la información de las entidades del Estado, por cualquier medio de publicación.","No Aplica"]
[null,"h) Requerir a los sujetos obligados para que ajusten sus procedimientos y sistema de atención al ciudadano a dicha legislación.","No Aplica"]
[null,"i) Realizar, directamente o a través de terceros, actividades de capacitación de funcionarios públicos en materia de transparencia y acceso a la información.","No Aplica"]
[null,"j) Efectuar estadísticas y reportes sobre transparencia y acceso a la información de los órganos de la administración del Estado y sobre el cumplimiento de esta ley.","No Aplica"]
[null,"k) Entregar en debida forma las respuestas a las peticiones formuladas con solicitud de identificación reservada a las que se refiere el parágrafO del artículo 4° de la presente ley.","No Aplica"]
[null,"l) Implementar y administrar tes sistemas de información en el cumplimiento de sus funciones para lo cual establecerá los plazos y criterios del reporte por parte de las entidades públicas que considere necesarias.","No Aplica"]
[null,"Las entidades del Ministerio Público contarán con una oficina designada que ¡ dispondrá de los medios necesarios para el cumplimiento de las anteriores funciones y atribuciones."]
["Artículo 24. Del Derecho de Acceso a la Información. ","Toda persona tiene derecho a solicitar y recibir información de cualquier sujeto obligado, en la forma y condiciones que establece esta ley y la Constitución.","No Aplica"]
["Artículo 25. Solicitud de acceso a la Información Pública. ","Es aquella que, de forma oral o escrita, incluida la vía electrónica, puede hacer cualquier persona para a la acceder a la información pública.","No Aplica"]
["Parágrafo. En ningún caso podrán ser rechazdas las peticiones por motivos de  fundamentación inadecuada o incompleta."]
["Artículo 26. Respuesta a solicitud de acceso a información. ","Es aquel acto escrito mediante el cual, de forma oportuna, veraz, completa, motivada y  actualizada, todo sujeto obligado responde materialmente a cualquier persona que presente una solicitud de acceso a información pública. Su respuesta se dará en los itérminos establecidos.","No Aplica"]
[null,"La respuesta a la solicitud deberá ser gratuita o sujeta a un costo que no supere el valor de la reproducción y envío de la misma al solicitante. Se preferirá, cuando sea posible, según los sujetos pasivo y activo, la respuesta por vía electrónica, con el consentimiento del solicitante."]
["Artículo 27. Recursos del solicitante. ","Cuando la respueSta a la solicitud de í información invoque la reserva de seguridad y defensa ñacional o relaciones  internacionales, el solicitante podrá acudir al recurso de reposición, el cual deberá interponerse por escrito y sustentando en la diligencia de notificación, o dentro de los tres (3) días siguientes a ella.","No Aplica"]
[null,"Negado este recurso corresponde administrivo con jurisdicción en el  lugar donde se encuentren los documentos, si se trata de autoridades nacionales, departamentales o del Distrito Capital de Bogotá, o al juez administrativo si se trata I de autoridades distritales y municipales, decidir en única instancia si se niega o se i acepta, total o parcialmente, la petición formulada.","No Aplica"]
[null,"Para ello, el funcionario respectivo enviará la documentación correspondiente al \ntribunal o al juez administrativo en un plazo no superior a tres (3) días. En caso de\nque el funcionario incumpla esta obligación el solicitante podrá hacer el respectivo\nenvío de manera directa.","No Aplica"]
[null,"El juez administrativo decidirá dentro de los diez (10) días siguientes. Este término I\nse interrumpirá en los siguientes casos:","No Aplica"]
[null,"1. Cuando el tribunal o el juez administrativo solicite copia o fotocopia de los documentos sobre cuya divulgación deba decidir, o cualquier otra II información que requieran, y hasta la fecha en la cual las reciba oficialmente.","No Aplica"]
[null,"2. Cuando la autoridad solicite, a la sección del Consejo de Estado que el reglamento disponga, asumir conocimiento del asunto en atención a su 'l importancia jurídica o con el objeto de unificar criterios sobre el tema. Si al cabo de cinco (5) días la sección guarda silencio, o decide no avocar  conocimiento, la actuación continuará ante el respectivo tribunal o  juzgado administrativo.","No Aplica"]
["Parágrafo. Será procedente la acción de tutela para aquellos casos no contemplados en el presente articulo, una vez agotado el recurso de reposición del Código Contencioso Administrativo."]
["Artículo 28. Carga de la prueba. ","Le corresponde al sujeto obligado aportar las razones y pruebas que fundamenten y evidencien que la información solicitada debe permanecer reservada o confidencial. En particular, el sujeto obligado debe demostrar que la información debe relacionarse con un objetivo legítimo establecido I legal o constitucionalmente. Además, deberá establecer si se trata de una excepción contenida en los artículos 18 y 19 de esta ley y si la revelación de la información causaría un daño presente, probable y específico que excede el interés público que representa el acceso a la información.","No Aplica"]
["Artículo 29. Responsabilidad Penal. ","Todo acto de ocultamiento, destrucción o  alteración deliberada total o parcial de información pública, una vez haya sido objeto I de una solicitud de información, será sancionado en los términos del artículo 292 del  Código Penal.","No Aplica"]
["TITULO V "]
["VIGENCIA Y MEDIDAS DE PROMOCIÓN"]
["Artículo 30. Capacitación. ","El Ministerio Público, con el apoyo de la sociedad CIvil  interesada en participar, deberá asistir a los sujetos obligados y a la ciudadanía en la capacitación con enfoque diferencial, para la aplicación de esta ley.","No Aplica"]
["Articulo 31. Educación Formal. ","El Ministerio de Educación, con el apoyo de la sociedad civil, deberá promover que en el área relacionada con el estudio de la Constitución, la instrucción cívica y el fomento de prácticas democráticas obligatorias para las instituciones educativas privadas y públicas, de conformidad con el artículo 41 de la Constitución Política, se incluya información sobre el derecho de acceso a la información, sus principios y sus reglas básicas.","No Aplica"]
["Artículo 32. Política Pública de acceso a la información."," El diseño, promoción e implementación de la política pública de acceso a la información pública, estará a cargo de la Secretaría de Transparencia de la Presidencia de la República, el Ministerio de Tecnología de la Información y Comunicaciones, el Departamento Administrativo de la Función Pública (DAFP), el Departamento Nacional de Planeación (DNP), el Archivo General de la Nación y el Departamento Administrativo Nacional de Estadística (DANE).","No Aplica"]
["Artículo 33. Vigencia y derogatoria. ","La presente ley rige a los seis (6) meses de la fecha de su promulgación para todos los sujetos obligados del orden nacional. Para los entes territoriales la ley entrará en vigencia un año después de su promulgación. La presente ley deroga todas las disposiciones que le sean contrarias.","No Aplica"]

{"sheet":"Decreto103","index":1,"n_rows":216,"n_cols":4,"rows_kept":216,"hidden":true,"merged":[[0,0,0,3],[1,0,1,1],[1,2,1,3],[2,0,2,1],[2,2,2,3],[3,0,3,1],[5,0,13,0],[14,0,14,1],[15,0,15,1],[16,0,26,0],[16,2,17,2],[16,3,27,3],[27,0,27,1],[28,0,28,1],[29,0,30,0],[31,0,33,0],[36,0,39,0],[41,0,41,1],[42,0,42,1],[47,0,47,1],[48,0,48,1],[49,0,49,1],[50,0,50,1],[51,0,56,0],[51,2,52,2],[51,3,52,3],[53,2,54,2],[55,2,56,2],[57,0,57,1],[58,0,58,1],[61,0,65,0],[66,0,66,1],[67,0,67,1],[68,0,75,0],[68,2,69,2],[68,3,69,3],[70,2,71,2],[76,0,77,0],[78,0,78,1],[79,0,79,1],[82,0,82,1],[83,0,83,1],[85,0,85,1],[86,0,86,1],[88,0,89,0],[90,0,90,1],[91,0,91,1],[92,0,92,1],[93,0,93,1],[95,0,97,0],[98,0,99,0],[100,0,100,1],[101,0,101,1],[103,0,104,0],[106,0,106,1],[107,0,107,1],[108,0,113,0],[115,0,115,1],[116,0,116,1],[117,0,122,0],[117,2,118,2],[117,3,118,3],[119,2,120,2],[124,0,124,1],[125,0,125,1],[127,0,138,0],[127,2,128,2],[139,0,139,1],[140,0,140,1],[141,0,141,1],[142,0,142,1],[143,0,143,1],[145,0,160,0],[145,2,146,2],[145,3,146,3],[161,0,161,1],[162,0,162,1],[164,0,180,0],[164,2,165,2],[182,0,182,1],[183,0,183,1],[185,0,186,0],[188,0,193,0],[188,2,189,2],[188,3,189,3],[194,0,195,0],[197,0,203,0],[198,2,199,2],[198,3,199,3],[204,0,204,1],[205,0,205,1],[207,0,212,0],[207,2,208,2],[207,3,208,3],[213,0,213,1],[214,0,214,1]]}
["Decreto 103"]
["PUBLICACIÓN Y DIVULGACIÓN DE LA INFORMACIÓN PÚBLICA – TRANSPARENCIA ACTIVA"]
["CAPÍTULO I",null,"Cumple"]
["Directrices Generales para la Publicación de Información Pública",null,"Resultado","Ubicación en el Sitio Web"]
["Artículo  3°. Estándares para publicar la información. ","El Ministerio de Tecnologías de la Información y las Comunicaciones a través de la estrategia de Gobierno en Línea expedirá los lineamientos que deben atender los sujetos obligados para cumplir con la publicación y divulgación de la información señalada en la Ley 1712 de 2014, con el objeto de que sean dispuestos de manera estandarizada.","No Aplica"]
["Artículo 4°. Publicación de información en sección particular del sitio web oficial."," Los sujetos obligados, de conformidad con las condiciones establecidas en el artículo5° de la Ley 1712 de 2014, deben publicar en la página principal de su sitio web oficial, en una sección particular identificada con el nombre de “Transparencia y acceso a información pública”, la siguiente información:","No Aplica"]
[null,"(1) La información mínima requerida a publicar de que tratan los artículos 9°, 10 y 11 de la Ley 1712 de 2014. Cuando la información se encuentre publicada en otra sección del sitio web o en un sistema de información del Estado, los sujetos obligados deben identificar la información que reposa en estos y habilitar los enlaces para permitir el acceso a la misma.","No Aplica"]
[null,"(2) El Registro de Activos de Información.","No Aplica"]
[null,"(3) El índice de Información Clasificada y Reservada.","No Aplica"]
[null,"(4) El Esquema de Publicación de Información.","No Aplica"]
[null,"(5) El Programa de Gestión Documental.","No Aplica"]
[null,"(6) Las Tablas de Retención Documental.","No Aplica"]
[null,"(7) El informe de solicitudes de acceso a la información señalado en el artículo 52 del presente decreto.","No Aplica"]
[null,"(8) Los costos de reproducción de la información pública, con su respectiva motivación.","No Aplica"]
["Parágrafo 1°. Entiéndase por Tabla de Retención Documental la lista de series docu­mentales con sus correspondientes tipos de documentos, a los cuales se les asigna el tiempo de permanencia en cada etapa del ciclo vital de los documentos.",null,"No Aplica"]
["Parágrafo 2°. Para efectos del cumplimiento de la Ley 1712 de 2014 y del presente de­creto, los términos ventanilla electrónica, sitio web oficial y medio electrónico institucional se entenderán como equivalentes.",null,"No Aplica"]
["Artículo  5°. Directorio de Información de servidores públicos, empleados y contratistas."," Para efectos del cumplimiento de lo establecido en los literales c) y e) y en el parágrafo 2° del artículo 9° de la Ley 1712 de 2014, los sujetos obligados, de conformidad con las condi­ciones establecidas en el artículo 5° de la citada Ley, deben publicar de forma proactiva un Directorio de sus servidores públicos, empleados, y personas naturales vinculadas mediante contrato de prestación de servicios, que contenga por lo menos la siguiente información:","No","y el Decreto 103 de\n2015 en su artículo 5 parágrafo 1."]
[null,"(1) Nombres y apellidos completos."]
[null,"(2) País, Departamento y Ciudad de nacimiento.","No"]
[null,"(3) Formación académica.","No"]
[null,"(4) Experiencia laboral y profesional.","No"]
[null,"(5) Empleo, cargo o actividad que desempeña.","No"]
[null,"(6) Dependencia en la que presta sus servicios en la entidad o institución.","No"]
[null,"(7) Dirección de correo electrónico institucional.","No"]
[null,"(8) Teléfono Institucional.","No"]
[null,"(9) Escala salarial según las categorías para servidores públicos y/o empleados del sector privado.","No"]
[null,"(10) Objeto, valor total de los honorarios, fecha de inicio y de terminación, cuando se trate contratos de prestación de servicios.","No"]
["Parágrafo 1°. Para las entidades u organismos públicos, el requisito se entenderá cump­lido con publicación de la información que contiene el directorio en el Sistema de Gestión del Empleo Público (Sigep), de que trata el artículo 18 de la Ley 909 de 2004 y las normas que la reglamentan.",null,"No"]
["Parágrafo 2°. La publicación de la información de los contratos de prestación de servicios en el Sistema de Gestión del Empleo Público (Sigep) no releva a los sujetos obligados que contratan con recursos públicos de la obligación de publicar la actividad contractual de tales contratos en el Sistema Electrónico para la Contratación Pública (Secop).",null,"No Aplica"]
["Artículo 6°. Publicación de los trámites y servicios que se adelantan ante los sujetos obligados. ","Los sujetos obligados deben publicar en su sitio web oficial los trámites que se adelanten ante los mismos, señalando la norma que los sustenta, procedimientos, costos, formatos y formularios requeridos.                    ","No Aplica"]
[null,"Para los sujetos obligados a inscribir sus trámites en el Sistema Único de Información de Trámites y Procedimientos Administrativos (SUIT), de que trata la Ley 962 de 2005 y el Decreto-ley 019 de 2012, dicho requisito se entenderá cumplido con la inscripción de los trámites en dicho sistema y la relación de los nombres de los mismos en el respectivo sitio web oficial del sujeto obligado con un enlace al Portal del Estado Colombiano o el que haga sus veces.    ","No Aplica"]
["Artículo  7°. Publicación de la información contractual. ","De conformidad con el literal (c) del artículo 3° de la Ley 1150 de 2007, el sistema de información del Estado en el cual los sujetos obligados que contratan con cargo a recursos públicos deben cumplir la oblig­ación de publicar la información de su gestión contractual es el Sistema Electrónico para la Contratación Pública (Secop).","No Aplica"]
[null,"Los sujetos obligados que contratan con cargo a recursos públicos deben publicar la información de su gestión contractual en el plazo previsto en el artículo 19 del Decreto 1510 de 2013, o el que lo modifique, sustituya o adicione.","No Aplica"]
[null,"Los sujetos obligados que contratan con recursos públicos y recursos privados, deben publicar la información de su gestión contractual con cargo a recursos públicos en el Sistema Electrónico para la Contratación Pública (Secop).","No Aplica"]
["Artículo 8°. Publicación de la ejecución de contratos."," Para efectos del cumplimiento de la obligación contenida en el literal g) del artículo 11 de la Ley 1712 de 2014, relativa a la información sobre la ejecución de contratos, el sujeto obligado debe publicar las aprobaciones, autorizaciones, requerimientos o informes del supervisor o del interventor, que prueben la ejecución del contrato.","No"]
["Artículo 9°. Publicación de procedimientos, lineamientos y políticas en materia de adquisición y compras. ","Para los sujetos obligados que contratan con cargo a recursos públicos, los procedimientos, lineamientos y políticas en materia de adquisición y compras de los que trata el literal g) del artículo 11 de la Ley 1712 de 2014 son los previstos en el manual de contratación expedido conforme a las directrices señaladas por la Agencia Nacional de Contratación Pública - Colombia Compra Eficiente -, el cual debe estar publicado en el sitio web oficial del sujeto obligado.","No Aplica"]
["Artículo 10. Publicación del Plan Anual de Adquisiciones. ","Los sujetos obligados que contratan con cargo a recursos públicos deben publicar en su página web y en el Secop el Plan Anual de Adquisiciones, de acuerdo con lo previsto en el artículo 74 de la Ley 1474 de 2011, el literal e) del artículo 9° de la Ley 1712 de 2014 y el Decreto1510 de 2013, o el que lo modifique, sustituya o adicione.","No Aplica"]
[null,"Los sujetos obligados que no contratan con cargo a recursos públicos no están obligados a publicar su Plan Anual de Adquisiciones.","No Aplica"]
[null,"Los sujetos obligados que contratan con cargo a recursos públicos y recursos privados, deben publicar en su página web y en el Secop el Plan Anual de Adquisiciones para los recursos de carácter público que ejecutarán en el año.","No Aplica"]
[null,"Se entenderá como definición de Plan Anual de Adquisiciones respecto a todos los sujetos obligados que contratan con recursos públicos, la prevista en el artículo 3° del Decreto 1510 de 2013, o el que lo modifique, sustituya o adicione.","No Aplica"]
["Artículo 11. Publicación de Datos Abiertos."," Las condiciones técnicas de que trata el literal k) del artículo 11 de la Ley 1712 de 2014 para la publicación de datos abiertos, serán elaborados por el Ministerio de Tecnologías de la Información y las Comunicaciones y publicados en el Portal de Datos Abiertos del Estado colombiano o la herramienta que lo sustituya.","No Aplica"]
["CAPÍTULO II"]
["Accesibilidad y otras directrices"]
["Artículo 12. Formato alternativo. ","Para efectos de lo previsto en el artículo 8° de la Ley 1712 de 2014, se entenderá por formato alternativo, la forma, tamaño o modo en la que se presenta la información pública o se permite su visualización o consulta para los grupos étnicos y culturales del país, y para las personas en situación de discapacidad, en aplicación del criterio diferencial de accesibilidad.","No Aplica"]
["Artículo 13. Accesibilidad en medios electrónicos para población en situación de discapacidad. ","Todos los medios de comunicación electrónica dispuestos para divulgar la información deberán cumplir con las directrices de accesibilidad que dicte el Ministerio de Tecnologías de la Información y las Comunicaciones a través de los lineamientos que se determinen en la Estrategia de Gobierno en línea.","No Aplica"]
["Artículo 14. Accesibilidad a espacios físicos para población en situación de discapacidad. ","Los sujetos obligados deben cumplir con los criterios y requisitos generales de accesibilidad y señalización de todos los espacios físicos destinados para la atención de solicitudes de información pública y/o divulgación de la misma, conforme a los lineamientos de la Norma Técnica Colombiana 6047, “Accesibilidad al medio físico. Espacios de servicio al ciudadano en la Administración Pública. Requisitos”, o la que la modifique o sustituya, atendiendo al principio de ajustes razonables establecido en dicha norma.","No Aplica"]
["Artículo 15. Publicación del mecanismo o procedimiento para participar en la for­mulación de políticas o en el ejercicio de las facultades del sujeto obligado. ","Los sujetos obligados, de acuerdo con el régimen legal aplicable, deben publicar los procedimientos a que deben sujetarse los ciudadanos, usuarios o interesados en participar en la formulación de políticas y en el control o evaluación de la gestión institucional, indicando: los sujetos que pueden participar, los medios presenciales y electrónicos, y las áreas responsables de la orientación y vigilancia para su cumplimiento.","No Aplica"]
["TÍTULO III"]
["GESTIÓN DE SOLICITUDES DE INFORMACIÓN PÚBLICA – TRANSPARENCIA PASIVA"]
["CAPÍTULO ÚNICO"]
["Recepción y Respuesta a Solicitudes de Información Pública y otras Directrices"]
["Artículo 16. Medios idóneos para recibir solicitudes de información pública. ","Se consideran medios idóneos para la recepción de solicitudes de información los siguientes:","No Aplica"]
[null,"(1) Personalmente, por escrito o vía oral, en los espacios físicos destinado por el sujeto obligado para la recepción de solicitudes de información pública."]
[null,"(2) Telefónicamente, al número fijo o móvil destinado por el sujeto obligado para la recepción de solicitudes de información pública.","No Aplica"]
[null,"(3) Correo físico o postal, en la dirección destinada por el sujeto obligado para la recepción de solicitudes de información pública."]
[null,"(4) Correo electrónico institucional destinado por el sujeto obligado para la recepción de solicitudes de información pública.","No Aplica"]
[null,"(5) Formulario electrónico dispuesto en el sitio web oficial del sujeto obligado, en un formato que siga los lineamientos que definida el Ministerio de las Tecnologías de la Información y las Comunicaciones a través de la estrategia de Gobierno en Línea."]
["Parágrafo 1°. Los sujetos obligados deben divulgar en el sitio web oficial, en medios de comunicación física y en otros canales de comunicación habilitados por el mismo, los números telefónicos y las direcciones físicas y electrónicas oficiales destinadas para la recepción de las solicitudes de información pública.",null,"No Aplica"]
["Parágrafo 2°. Las condiciones de seguridad que deben atender los medios electrónicos señalados en el presente artículo y los adicionales que defina el sujeto obligado para la recepción de solicitudes, serán establecidas por el Ministerio de las Tecnologías de la Información y las Comunicaciones a través de los lineamientos que se determinen en la Estrategia de Gobierno en línea.",null,"No Aplica"]
["Artículo 17. Seguimiento a las solicitudes de información pública."," En la recepción de solicitudes de información pública los sujetos obligados deben indicar al solicitante un número o código que permita hacer seguimiento al estado de su solicitud, la fecha de recepción y los medios por los cuales se puede hacer seguimiento a la misma.","No Aplica"]
["Artículo 18. Solicitudes de acceso a información con identificación reservada. ","Para el registro de la recepción y trámite de solicitudes de información pública bajo el procedimiento especial con identificación reservada, previsto en el parágrafo del artículo 4° de la Ley 1712 de 2014, el Ministerio Público dispondrá un formulario electrónico. Este mecanismo electrónico es adicional a los medios ordinarios de recepción de solicitudes de acceso a información pública dispuestos por las entidades que conforman el Ministerio Público.","No Aplica"]
["Artículo 19. Contenido y oportunidad de las respuestas a solicitudes de acceso a información pública."," Conforme a lo establecido en el artículo 26 de la Ley 1712 de 2014, en el acto de respuesta a solicitudes de acceso a información pública, los sujetos obligados deben aplicar las siguientes directrices:","No Aplica"]
[null,"(1) El acto de respuesta debe ser por escrito, por medio electrónico o físico de acuerdo con la preferencia del solicitante. Cuando la solicitud realizada no especifique el medio de respuesta de preferencia el sujeto obligado podrá responder por el mismo medio de la solicitud.","No Aplica"]
[null,"(2) El acto de respuesta debe ser objetivo, veraz, completo, motivado y actualizado y debe estar disponible en formatos accesibles para los solicitantes o interesados en la información allí contenida.","No Aplica"]
[null,"(3) El acto de respuesta debe ser oportuno respetando los términos de respuesta al de­recho de petición de documentos y de información que señala el Código de Procedimiento Administrativo y de lo Contencioso Administrativo, o las normas que lo complementen o sustituyan.","No Aplica"]
[null,"(4) El acto de respuesta debe informar sobre los recursos administrativos y judiciales de los que dispone el solicitante en caso de no hallarse conforme con la respuesta recibida.","No Aplica"]
["Parágrafo 1°. En los casos de respuestas a solicitudes de información clasificada o reservada, además de las directrices antes señaladas, debe tenerse en cuenta lo establecido en el Capítulo IV del Título IV, del presente decreto.",null,"No Aplica"]
["Parágrafo 2°. Cuando las solicitudes se refieran a consulta de documentos que están disponibles en medio físico y no se solicite su reproducción, los sujetos obligados dispondrán de un sitio físico para la consulta.",null,"No Aplica"]
["Artículo 20. Principio de gratuidad y costos de reproducción. ","En concordancia con lo establecido en los artículos 3° y 26 de la Ley 1712 de 2014, en la gestión y respuesta a las solicitudes de acceso a la información pública, los sujetos obligados deben:","No Aplica"]
[null,"(1) Aplicar el principio de gratuidad y, en consecuencia, no cobrar costos adicionales a los de reproducción de la información."]
[null,"(2) Permitir al ciudadano, interesados o usuario:","No Aplica"]
[null,"(a) Elegir el medio por el cual quiere recibir la respuesta;"]
[null,"(b) Conocer el formato en el cual se encuentra la información solicitada, de acuerdo con lo establecido en el Esquema de Publicación de Información;","No Aplica"]
[null,"(c) Conocer los costos de reproducción en el formato disponible, y/o los costos de reproducción en el evento en que el solicitante elija un formato distinto al disponible y sea necesaria la transformación de la información, de acuerdo con lo establecido por el sujeto obligado en el Acto de Motivación de los costos de reproducción de Información Pública.","No Aplica"]
[null,"Se debe entender por costos de reproducción todos aquellos valores directos que son necesarios para obtener la información pública que el peticionario haya solicitado, ex­cluyendo el valor del tiempo que ocupe el servidor público, empleado o contratista para realizar la reproducción.","No Aplica"]
[null,"Cuando la información solicitada repose en un formato electrónico o digital, y el sujeto obligado tenga la dirección del correo electrónico del solicitante u otro medio electrónico indicado, deberá enviarlo por este medio y no se le cobrará costo alguno de reproducción de la información.","No Aplica"]
["Artículo  21. Motivación de los costos de reproducción de información pública. ","Los sujetos obligados deben determinar, motivadamente, mediante acto administrativo o documento equivalente según el régimen legal aplicable, los costos de reproducción de la información pública, individualizando el costo unitario de los diferentes tipos de formato a través de los cuales se puede reproducir la información en posesión, control o custodia del mismo, y teniendo como referencia los precios del lugar o zona de domicilio del sujeto obligado, de tal forma que estos se encuentren dentro de parámetros del mercado.","No Aplica"]
[null,"El acto mediante el cual se motiven los valores a cobrar por reproducción de información pública debe ser suscrito por funcionario o empleado del nivel directivo y debe ser divulga­do por el sujeto obligado, conforme a lo establecido en el artículo 4° del presente decreto.","No Aplica"]
["Parágrafo 1°. Para establecer los costos de reproducción de información, el sujeto obligado debe tener en cuenta que la información pública puede ser suministrada a través de los diferentes medios de acuerdo con su formato y medio de almacenamiento, entre ellos: fotocopias, medios magnéticos o electrónicos, memorias USB, Discos Compactos, DVD u otros que permitan reproducción, captura, distribución, e intercambio de información pública.",null,"No Aplica"]
["Parágrafo 2°. Cuando se trate de solicitudes de información relacionadas con la prestación de un trámite a cargo del sujeto obligado, los costos de reproducción de la información solicitada estarán sujetos a las tasas o tarifas establecidas para la realización del trámite, según las normas que reglamentan el mismo.",null,"No Aplica"]
["Artículo 22. Creación o producción de información pública. ","La solicitud de acceso a la información pública no implica el deber de los sujetos obligados de generar o producir información no disponible. En este caso, el sujeto obligado comunicará por escrito que la denegación de la solicitud se debe a la inexistencia de datos en su poder, y en el evento en que dicha información esté en poder o control de otro sujeto obligado, remitirá a este la solicitud de información.","No Aplica"]
["Artículo 23. Supervigilancia al derecho de acceso a la información pública. ","De conformidad con lo previsto en el artículo 7° del Decreto-ley 262 de 2000 y en la Resolución 496 de 2011 expedida por el Procurador General de la Nación, o la que la modifique, sustituya o adicione, o la que la modifique, sustituya o adicione los solicitantes de acceso a información podrán acudir a la Procuraduría General de la Nación cuando consideren que es necesario realizar una solicitud de supervigilancia al derecho de acceso a información pública.","No Aplica"]
["TÍTULO IV"]
["GESTIÓN DE LA INFORMACIÓN CLASIFICADA Y RESERVADA"]
["Artículo 24. Excepciones al Derecho fundamental de acceso a la información pública."," Los sujetos obligados garantizarán la eficacia del ejercicio del derecho fundamental de acceso a la información pública, sin perjuicio de su facultad de restringirlo en los casos autorizados por la Constitución o la ley, y conforme a lo previsto en los artículos 18 y 19 la Ley 1712 de 2014, en consonancia con las definiciones previstas en los literales c) y d) del artículo 6°, de la misma.","No Aplica"]
["CAPÍTULO I"]
["Información Pública Clasificada"]
["Artículo 25. Acceso general a datos semiprivados, privados o sensibles. ","La información pública que contiene datos semiprivados o privados, definidos en los literales g) y h) del artículo 3° de la Ley 1266 de 2008, o datos personales o sensibles, según lo previsto en los artículos 3° y 5° de la Ley 1581 de 2012 y en el numeral 3° del artículo 3° del Decreto 1377 de 2013, solo podrá divulgarse según las reglas establecidas en dichas normas.","No Aplica"]
["Artículo 26. Acceso a datos personales en posesión de los sujetos obligados."," Los sujetos obligados no podrán permitir el acceso a datos personales sin autorización del titular de la información, salvo que concurra alguna de las excepciones consagradas en los artículos 6° y 10 de la Ley 1581 de 2012.","No Aplica"]
[null,"Tampoco podrá permitirse el acceso a los datos personales de niños, niñas y adolescentes, salvo aquellos que sean de naturaleza pública, de acuerdo con lo previsto en el artículo 7° de la Ley 1581 de 2012.","No Aplica"]
["Parágrafo 1°. Permitir el acceso de un dato semiprivado, privado o sensible no le quita el carácter de información clasificada, ni puede implicar su desprotección.",null,"No Aplica"]
["Parágrafo 2°. Salvo que medie autorización del titular, a los datos semiprivados, priva­dos y sensibles contenidos en documentos públicos solo podrá accederse por decisión de autoridad jurisdiccional o de autoridad pública o administrativa competente en ejercicio de sus funciones.",null,"No Aplica"]
["CAPÍTULO II"]
["Información Pública Reservada"]
["Artículo 27. Responsable de la calificación de Reserva de la información pública por razones de defensa y seguridad nacional, seguridad pública o relaciones internacionales. ","La calificación de reservada de la información prevista en los literales a), b) y c) del artículo 19 de la Ley 1712 de 2014, corresponderá exclusivamente al jefe de la dependencia o área responsable de la generación, posesión, control o custodia de la información, o funcionario o empleado del nivel directivo que, por su completo e integral conocimiento de la información pública, pueda garantizar que la calificación sea razonable y proporcionada.","No Aplica"]
["Artículo 28. Reserva de la información pública por razones de estabilidad macroeconómica y financiera. ","La excepción prevista en el literal h) del artículo 19 de la Ley 1712 de 2014 podrá amparar la calificación de información pública reservada entre otras circunstancias cuando:","No Aplica"]
[null,"(1) Pueda afectar la estabilidad de la economía o los mercados, la eficacia de la política macroeconómica y financiera o el cumplimiento de las funciones de las entidades que tienen a su cargo el diseño y la implementación de estas políticas; o,","No Aplica"]
[null,"(2) Esté relacionada con las labores de supervisión necesarias para garantizar la estabilidad del sistema financiero y la confianza del público en el mismo.","No Aplica"]
["Artículo 29. Temporalidad de la reserva. ","Sin perjuicio de lo señalado en el artículo 19 de la Ley 1712 de 2014 y del período máximo de reserva de la información a que hace referencia el artículo 22 de la Ley 1712 de 2014, la información respectiva debe divulgarse si desaparecen las condiciones que justificaban su reserva.","No Aplica"]
[null,"El término máximo de quince (15) años a que se refiere el artículo 22 de la Ley 1712 de 2014 empezará a contarse a partir de la fecha en que la información se genera.","No Aplica"]
["CAPÍTULO III"]
["Directrices para la Calificación de Información Pública como Clasificada o Reservada"]
["Artículo 30. Identificación de la norma que dispone que la información sea clasificada o reservada. ","Para asignar el carácter de clasificada o reservada a la información pública que se encuentra bajo su posesión, control o custodia, los sujetos obligados deben identificar las disposiciones constitucionales o legales que expresamente así lo dispongan.","No Aplica"]
["Artículo 31. Existencia y divulgación integral o parcial de la información. ","Si un mismo acto o documento contiene información que puede ser divulgada e información clasificada o reservada, el sujeto obligado debe revelar los datos no protegidos y presentar los fundamentos constitucionales y legales por los que retiene los datos que no puede divulgar.","No Aplica"]
[null,"Los sujetos obligados podrán tachar los apartes clasificados o reservados del documento, anonimizar, transliterar o editar el documento para suprimir la información que no puede difundirse; abrir un nuevo expediente con la información pública que puede ser divulgada; o acudir a las acciones que sean adecuadas para cumplir con su deber de permitir el acceso a toda aquella información que no esté clasificada o reservada, teniendo en cuenta el formato y medio de conservación de la información.","No Aplica"]
["Artículo 32. Coordinación interinstitucional. ","Si un sujeto obligado remite o entrega información pública calificada como clasificada o reservada a otro sujeto obligado, deberá advertir tal circunstancia e incluir la motivación de la calificación, para que este último excepcione también su divulgación.","No Aplica"]
["CAPÍTULO IV"]
["Denegación o rechazo del Derecho de Acceso a la Información Pública por Clasificación o Reserva"]
["Artículo 33. Contenido del acto de respuesta de rechazo o denegación del derecho de acceso a información pública por clasificación o reserva. ","El acto de respuesta del sujeto obligado que deniegue o rechace una solicitud de acceso a información pública por razón de clasificación o reserva, además de seguir las directrices señaladas en el presente decreto, y en especial lo previsto en el índice de Información Clasificada y Reservada, deberá contener:","No Aplica"]
[null,"(1) El fundamento constitucional o legal que establece el objetivo legítimo de la clasificación o la reserva, señalando expresamente la norma, artículo, inciso o párrafo que la calificación,","No Aplica"]
[null,"(2) La identificación de la excepción que, dentro de las previstas en los artículos 18 y 19 de la Ley 1712 de 2014, cobija la calificación de información reservada o clasificada;","No Aplica"]
[null,"(3) El tiempo por el que se extiende la clasificación o reserva, contado a partir de la fecha de generación de la información; y, (4) La determinación del daño presente, probable y específico que causaría la divulgación de la información pública y la relación de las razones y las pruebas, en caso de que existan, que acrediten la amenaza del daño.","No Aplica"]
[null,"En ningún caso procederá el rechazo de una solicitud por razones tales como encubrir violaciones a la ley, ineficiencias o errores de los sujetos obligados, ni para proteger el prestigio de personas, organizaciones o autoridades.","No Aplica"]
[null,"Las solicitudes de información sobre contratación con recursos públicos no podrán ser negadas, excepto que haya sido calificada como clasificada o reservada de acuerdo con las directrices señaladas la ley y en el presente decreto.","No Aplica"]
["Artículo 34. Definición de daño presente, probable y específico. ","Se entenderá que el daño es presente siempre que no sea remoto ni eventual; probable cuando existan las circunstancias que harían posible su materialización; y específico solo si puede individualizarse y no se trate de una afectación genérica.","No Aplica"]
["TÍTULO V"]
["INSTRUMENTOS DE LA GESTIÓN DE INFORMACIÓN PÚBLICA"]
["Artículo 35. Instrumentos de gestión de la información pública. ","Los instrumentos para la gestión de la información pública, conforme con lo establecido en la Ley 1712 de 2014, son:","No Aplica"]
[null,"(1) Registro de Activos de Información."]
[null,"(2) Índice de Información Clasificada y Reservada.","No Aplica"]
[null,"(3) Esquema de Publicación de Información."]
[null,"(4) Programa de Gestión Documental.","No Aplica"]
[null,"Los sujetos obligados deben articular dichos instrumentos mediante el uso eficiente de las tecnologías de la información y las comunicaciones, y garantizar su actualización y divulgación.","No Aplica"]
["Artículo 36. Mecanismo de adopción y actualización de los Instrumentos de Gestión de la Información Pública."," El Registro de Activos de Información, el índice de Información Clasificada y Reservada, el Esquema de Publicación de Información y el Programa de Gestión Documental, deben ser adoptados y actualizados por medio de acto administrativo o documento equivalente de acuerdo con el régimen legal al sujeto obligado.","No Aplica"]
["CAPÍTULO I"]
["Registro de Activos de Información"]
["Artículo 37. Concepto del Registro de Activos de Información. ","El Registro de Activos de Información es el inventario de la información pública que el sujeto obligado genere, obtenga, adquiera, transforme o controle en su calidad de tal.","No"]
["Artículo 38. Componentes del Registro de Activos de Información."," El Registro de Activos de Información debe contener, como mínimo, los siguientes componentes:","No"]
[null,"(1) Todas las categorías de información del sujeto obligado."]
[null,"(2) Todo registro publicado.","No"]
[null,"(3) Todo registro disponible para ser solicitado por el público.","No"]
[null,"Para cada uno de los componentes del Registro de Activos de Información debe detal­larse los siguientes datos:","No"]
[null,"(a) Nombre o título de la categoría de información: Término con que se da a conocer el nombre o asunto de la información.","No"]
[null,"(b) Descripción del contenido la categoría de información: Define brevemente de qué se trata la información.","No"]
[null,"(c) Idioma: Establece el Idioma, lengua o dialecto en que se encuentra la información.","No"]
[null,"(d) Medio de conservación y/o soporte: Establece el soporte en el que se encuentra la información: documento físico, medio electrónico o por algún otro tipo de formato audio­visual entre otros (físico, análogo o digital- electrónico).","No"]
[null,"(e) Formato: Identifica la forma, tamaño o modo en la que se presenta la información o se permite su visualización o consulta, tales como: hoja de cálculo, imagen, audio, video, documento de texto, etc.","No"]
[null,"(f) Información publicada o disponible. Indica si la información está publicada o disponible para ser solicitada, señalando dónde está publicada y/o dónde se puede consultar o solicitar.","No"]
[null,"El Registro de Activos de Información debe elaborarse en formato de hoja de cálculo y publicarse en el sitio web oficial del sujeto obligado, así como en el Portal de Datos Abiertos del Estado colombiano o en la herramienta que lo modifique o lo sustituya.","No"]
["Parágrafo 1°. Entiéndase por Categorías de información, toda información de contenido o estructura homogénea, sea física o electrónica, emanada de un mismo sujeto obligado como resultado del ejercicio de sus funciones y que pueda agruparse a partir de categorías, tipos o clases según sus características internas (contenido) o externas (formato o estructura).",null,"No Aplica"]
["Parágrafo 2°. El sujeto obligado debe actualizar el Registro de Activos de Información de acuerdo con los procedimientos y lineamientos definidos en su Programa de Gestión Documental.",null,"No Aplica"]
["Parágrafo 3°. El Ministerio Público podrá establecer estándares adicionales para el Registro de Activos de Información de los sujetos obligados.",null,"No Aplica"]
["CAPÍTULO II"]
["Índice de Información Clasificada y Reservada"]
["Artículo 39. Concepto del índice de Información Clasificada y Reservada. ","El Índice de Información Clasificada y Reservada es el inventario de la información pública generada, obtenida, adquirida o controlada por el sujeto obligado, en calidad de tal, que ha sido calificada como clasificada o reservada.","No"]
["Artículo 40. Contenido del índice de Información Clasificada y Reservada. ","El Índice de Información Clasificada y Reservada indicará, para cada información calificada como reservada o clasificada, lo siguiente:","No Aplica"]
[null,"(1) Nombre o título de la categoría de información: Término con que se da a conocer el nombre o asunto de la información."]
[null,"(2) Nombre o título de la información: Palabra o frase con que se da a conocer el nombre o asunto de la información.","No Aplica"]
[null,"(3) Idioma: Establece el Idioma, lengua o dialecto en que se encuentra la información.","No Aplica"]
[null,"(4) Medio de conservación y/o soporte: Establece el soporte en el que se encuentra la información: documento físico, medio electrónico o por algún otro tipo de formato audio­visual entre otros (físico - análogo o digital - electrónico).","No Aplica"]
[null,"(5) Fecha de generación de la información: Identifica el momento de la creación de la información.","No Aplica"]
[null,"(6) Nombre del responsable de la producción de la información: Corresponde al nom­bre del área, dependencia o unidad interna, o al nombre de la entidad externa que creó la información.","No Aplica"]
[null,"(7) Nombre del responsable de la información: Corresponde al nombre del área, de­pendencia o unidad encargada de la custodia o control de la información para efectos de permitir su acceso.","No Aplica"]
[null,"(8) Objetivo legítimo de la excepción: La identificación de la excepción que, dentro de las previstas en los artículos 18 y 19 de la Ley 1712 de 2014, cobija la calificación de información reservada o clasificada.","No Aplica"]
[null,"(9) Fundamento constitucional o legal: El fundamento constitucional o legal que justifican la clasificación o la reserva, señalando expresamente la norma, artículo, inciso o párrafo que la ampara.","No Aplica"]
[null,"(10) Fundamento jurídico de la excepción: Mención de la norma jurídica que sirve como fundamento jurídico para la clasificación o reserva de la información.","No Aplica"]
[null,"(11) Excepción total o parcial: Según sea integral o parcial la calificación, las partes o secciones clasificadas o reservadas.","No Aplica"]
[null,"(12) Fecha de la calificación: La fecha de la calificación de la información como re­servada o clasificada.","No Aplica"]
[null,"(13) Plazo de la clasificación o reserva: El tiempo que cobija la clasificación o reserva.","No Aplica"]
[null,"El índice de Información Clasificada y Reservada debe actualizarse cada vez que una información sea calificada como clasificada o reservada y cuando dicha calificación se levante, conforme a lo establecido en el mismo índice y en el Programa de Gestión Documental.","No Aplica"]
[null,"El índice de Información Clasificada y Reservada será de carácter público, deberá elabo­rarse en formato de hoja de cálculo y publicarse en el sitio web oficial del sujeto obligado, así como en el Portal de Datos Abiertos del Estado colombiano o en la herramienta que lo modifique o lo sustituya.","No Aplica"]
["CAPÍTULO III"]
["Esquema de Publicación de Información"]
["Artículo 41. Concepto."," El Esquema de Publicación de Información es el instrumento del que disponen los sujetos obligados para informar, de forma ordenada, a la ciudadanía, interesados y usuarios, sobre la información publicada y que publicará, conforme al prin­cipio de divulgación proactiva de la información previsto en el artículo 3° de la Ley 1712 de 2014, y sobre los medios a través de los cuales se puede acceder a la misma.","No Aplica"]
["Artículo 42. Componentes del Esquema de Publicación de Información. ","En concordancia con lo establecido en el artículo 12 de la Ley 1712 de 2014, el Esquema de Publicación de Información debe incluir, como mínimo, lo siguiente:","No"]
[null,"(1) La lista de información mínima publicada en el sitio web oficial del sujeto obligado o en los sistemas de información del Estado, conforme a lo previsto en los artículos 9°, 10 y 11 de la Ley 1712 de 2014."]
[null,"(2) La lista de la información publicada en el sitio web oficial del sujeto obligado, adi­cional a la mencionada en el numeral anterior, y conforme a lo ordenado por otras normas distintas a la Ley de Transparencia y del Derecho al Acceso a la Información Pública Nacional.","No"]
[null,"(3) Información publicada por el sujeto obligado, originada en la solicitud de información divulgada con anterioridad, de que trata el artículo 14 de la Ley 1712 de 2014.","No"]
[null,"(4) Información de interés para la ciudadanía, interesados o usuarios, publicada de manera proactiva por el sujeto obligado, relacionada con la actividad misional del sujeto obligado y sus objetivos estratégicos.","No"]
[null,"Para cada una de los anteriores componentes de Esquema de Publicación de Información se debe indicar:","No"]
[null,"(a) Nombre o título de la información: Palabra o frase con que se da a conocer el nombre o asunto de la información.","No"]
[null,"(b) Idioma: Establece el Idioma, lengua o dialecto en que se encuentra la información.","No"]
[null,"(c) Medio de conservación y/o soporte: Establece el soporte en el que se encuentra la información: documento físico, medio electrónico o por algún otro tipo de formato audio­visual entre otros (físico - análogo o digital - electrónico).","No"]
[null,"(d) Formato: Identifica la forma, tamaño o modo en la que se presenta la información o se permite su visualización o consulta, tales como: hoja de cálculo, imagen, audio, video, documento de texto, etc.","No"]
[null,"(e) Fecha de generación de la información: Identifica el momento de la creación de la información.","No"]
[null,"(f) Frecuencia de actualización: Identifica la periodicidad o el segmento de tiempo en el que se debe actualizar la información, de acuerdo a su naturaleza y a la normativa aplicable.","No"]
[null,"(g) Lugar de consulta: Indica el lugar donde se encuentra publicado o puede ser con­sultado el documento, tales como lugar en el sitio web y otro medio en donde se puede descargar y/o acceder a la información cuyo contenido se describe.","No"]
[null,"(h) Nombre del responsable de la producción de la información: Corresponde al nom­bre del área, dependencia o unidad interna, o al nombre de la entidad externa que creó la información.","No"]
[null,"(i) Nombre del responsable de la información: Corresponde al nombre del área, de­pendencia o unidad encargada de la custodia o control de la información para efectos de permitir su acceso.","No"]
[null,"Para facilitar el acceso a la información, los sujetos obligados publicarán el Cuadro de Clasificación Documental.","No"]
[null,"De acuerdo con lo estipulado en el literal c) del artículo 12 de la Ley 1712 de 2014, el Ministerio Público podrá hacer recomendaciones generales o particulares a los sujetos obligados sobre el Esquema de Publicación de Información.","No"]
["Artículo 43. Procedimiento participativo para la adopción y actualización del Esquema de Publicación. ","Los sujetos obligados, de acuerdo con el régimen legal aplicable, implementarán mecanismos de consulta a ciudadanos, interesados o usuarios en los procesos de adopción y actualización del Esquema de Publicación de Información, con el fin de identificar información que pueda publicarse de manera proactiva y de establecer los formatos alternativos que faciliten la accesibilidad a poblaciones específicas.","No"]
["CAPíTULO IV"]
["Programa de Gestión Documental"]
["Artículo 44. Concepto del Programa de Gestión Documental. ","En desarrollo de la Ley 1712 de 2014 se entenderá por Programa de Gestión Documental el plan elaborado por cada sujeto obligado para facilitar la identificación, gestión, clasificación, organización, conservación y disposición de la información pública, desde su creación hasta su disposición final, con fines de conservación permanente o eliminación.","No Aplica"]
["Artículo 45. Articulación y/o integración del Programa de Gestión Documental con los instrumentos de gestión de información. .\n","La información incluida en el Registro de Activos de Información, en el índice de Información Clasificada y Reservada, y en el Esquema de Publicación de Información, definidos en el presente decreto, debe ser identificada, gestionada, clasificada, organizada y conservada de acuerdo con los procedimientos, lineamientos, valoración y tiempos definidos en el Programa de Gestión Documental del sujeto obligado","No Aplica"]
[null,"El sujeto obligado debe contar con políticas de eliminación segura y permanente de la información, una vez cumplido el tiempo de conservación establecido en las tablas de retención documental o tablas de valoración documental, el Programa de Gestión Documental y demás normas expedidas por el Archivo General de la Nación.","No Aplica"]
["Artículo 46. Aplicación de lineamientos generales sobre el Programa de Gestión Documental. ","Los sujetos obligados aplicarán en la elaboración del Programa de Gestión Documental los lineamientos contenidos en Decreto 2609 de 2012 o las normas que lo sustituyan o modifiquen.","No Aplica"]
["Artículo 47. Lineamientos sobre el Programa de Gestión Documental para los sujetos obligados de naturaleza privada. ","Los sujetos obligados de naturaleza privada que no están cobijados por el Decreto 2609 de 2012, o el que lo complemente o sustituya, deben cumplir, en la elaboración del Programa de Gestión Documental, como mínimo, con las siguientes directrices:","No Aplica"]
[null,"(1) Contar con una política de gestión documental aprobada por el sujeto obligado."]
[null,"(2) Elaborar, aprobar y publicar sus Tablas de Retención Documental.","No Aplica"]
[null,"(3) Contar con un archivo institucional","No Aplica"]
[null,"(4) Diseñar políticas para la gestión de sus documentos electrónicos, incluyendo políticas de preservación y custodia digital.","No Aplica"]
[null,"(5) Integrarse al Sistema Nacional de Archivos.","No Aplica"]
["Artículo 48. Conservación de la información publicada con anterioridad. ","Para efectos de lo previsto en el artículo 14 de la Ley 1712 de 2014, los sujetos obligados deben garantizar la conservación de los documentos divulgados en su sitio web o en sistemas de información que contengan o produzcan información pública, para lo cual seguirán los procedimientos de valoración documental y delimitarán los medios, formatos y plazos para la conservación de la información publicada con anterioridad, con el fin de permitir su fácil acceso luego de retirada la publicación.","No Aplica"]
[null,"Los sujetos obligados deben definir un procedimiento para retirar la información que haya sido publicada y garantizar la recuperación de información retrospectiva que haya sido desfijada o retirada. Los lineamientos y plazos para cumplir a cabalidad con esta obligación, deben estar incluidos en el Programa de Gestión Documental del sujeto obligado.","No Aplica"]
["Artículo 49. Gestión de información en los casos de liquidaciones, supresiones, fusiones o escisiones de sujetos obligados. ","En los casos de liquidaciones, supresiones, fusiones o escisiones de sujetos obligados, éstos deben asegurar que los instrumentos de gestión de información se mantengan, sin que se obstaculice el acceso a la información pública. La entrega de la información al sujeto obligado que asuma las responsabilidades del cesante se garantizará mediante inventarios debidamente ordenados, y de conformidad con las normas que se expidan al respecto.","No Aplica"]
["Artículo 50. Documentos y archivos de derechos humanos. ","Los archivos de derechos humanos corresponden a documentos que, en sentido amplio, se refieren a violaciones a los derechos humanos e infracciones al Derecho Internacional Humanitario. Los archivos de derechos humanos deben ser objeto de las medidas de preservación, protección y acceso definidas en el marco internacional de los derechos humanos, la jurisprudencia, la legislación interna, yen particular, el inciso final del artículo 21 de la Ley 1712 de 2014.","No Aplica"]
[null,"Para la identificación de los documentos de derechos humanos, se tendrán en cuenta, entre otros:","No Aplica"]
[null,"(1) Documentos producidos por entidades del Estado con funciones legales en torno a los Derechos Humanos y el Derecho Internacional Humanitario de acuerdo con las instrucciones que imparta el Archivo General de la Nación."]
[null,"(2) Documentos producidos por las víctimas y sus organizaciones relativos a violaciones a los Derechos Humanos y el Derecho Internacional Humanitario.","No Aplica"]
[null,"(3) Documentos e informes académicos y de investigación relativos a violaciones a los Derechos Humanos y el Derecho Internacional Humanitario.","No Aplica"]
[null,"(4) Documentos de entidades internacionales relativos a violaciones a los Derechos Humanos y el Derecho Internacional Humanitario.","No Aplica"]
[null,"(5) Documentos de entidades privadas o entidades privadas con funciones públicas relativos a violaciones a los Derechos Humanos y el Derecho Internacional Humanitario.","No Aplica"]
["TíTULO VI\n"]
["Seguimiento a la gestión de la Información"]
["Artículo 51. Seguimiento a la gestión de la información pública.","Los sujetos obligados deben adelantar las acciones pertinentes para hacer seguimiento a la gestión de la información pública. El Ministerio Público y las entidades líderes de la política de transparencia y de acceso a la información pública definidas en el artículo 32 de la Ley 1712 de 2014, de acuerdo con su ámbito de competencia, adelantarán acciones que permitan medir el avance en la implementación de la ley de transparencia por parte de los sujetos obligados, quienes deben colaborar armónicamente en el suministro de la información que se requiera.","No Aplica"]
["Artículo 52. Informes de solicitudes de acceso a información. ","De conformidad con lo establecido en el literal h) del artículo 11 de la Ley 1712 de 2014, los sujetos obligados deberán publicar los informes de todas las solicitudes, denuncias y los tiempos de respuesta. Respecto de las solicitudes de acceso a información pública, el informe debe discriminar la siguiente información mínima:","No"]
[null,"(1) El número de solicitudes recibidas."]
[null,"(2) El número de solicitudes que fueron trasladadas a otra institución.","No"]
[null,"(3) El tiempo de respuesta a cada solicitud.","No"]
[null,"(4) El número de solicitudes en las que se negó el acceso a la información.","No"]
[null,"El informe sobre solicitudes de acceso a información estará a disposición del público en los términos establecidos en el artículo 4° del presente decreto.","No"]
["Parágrafo 1°. Los sujetos obligados de la Ley 1712 de 2014, que también son sujetos de la Ley 190 de 1995, podrán incluir los informes de solicitudes de acceso a la información a que se refiere el presente artículo, en los informes de que trata el artículo 54 de la Ley 190 de 1995.",null,"No Aplica"]
["Parágrafo 2°. El primer informe de solicitudes de acceso a la información deberá publicarse seis meses después de la expedición del presente decreto, para el caso de los sujetos obligados del orden nacional; los entes territoriales deberán hacerlo 6 meses después de la entrada en vigencia de la Ley 1712 de 2014.",null,"No Aplica"]
["Artículo 53. Vigencia. ","El presente decreto rige a partir de la fecha de su publicación, sin perjuicio de lo previsto en el artículo 33 de la Ley 1712 de 2014, respecto a la entrada en vigencia para los entes territoriales.","No Aplica"]

{"sheet":"Resolución 3564","index":2,"n_rows":64,"n_cols":11,"rows_kept":64,"merged":[[1,0,1,10],[3,0,9,0],[10,0,18,0],[19,0,26,0],[28,0,30,0],[31,0,41,0],[42,0,47,0],[48,0,50,0],[51,0,52,0],[53,0,59,0],[60,0,61,0]]}
[]
["ESQUEMA DE PUBLICACIÓN - TRANSPARENCIA Y ACCESO A LA INFORMACIÓN PÚBLICA"]
["Categoría","Título de la información","Nombre o título de la información: ","(b) Idioma: ","(c) Medio de conservación y/o soporte: ","(d) Formato:","(e) Fecha de generación de la información:","(f) Frecuencia de actualización:","(g) Lugar de consulta: ","(h) Nombre del responsable de la producción de la información: ","(i) Nombre del responsable de la custodia de la información: "]
["1. Mecanismos de contacto","Oficina de Atención Personalizada","Contiene la información de la dirección fisica, telefono, correo de la oficina asignada para la atención personalizada","Español","Electrónico","Web","N/A","A solicitud","https://ilvalle.com.co/transparencia/localizacion-fisica-sucursales-o-regionales-horarios-y-dias-de-atencion-al-publico/","Subgerencia General y Juridica","Subgerencia General y Juridica"]
[null,"Teléfonos de contacto","Contiene la información de los numeros telefonicos de contacto dispuestos a la ciudadania","Español","Electrónico","Web","N/A","A solicitud","https://ilvalle.com.co/transparencia/localizacion-fisica-sucursales-o-regionales-horarios-y-dias-de-atencion-al-publico/","Subgerencia General y Juridica","Subgerencia General y Juridica"]
[null,"Correo Electrónico de Atención al ciudadano","Contiene la información del correo Electrónico de atención al ciudadano dispuesto por la ILV","Español","Electrónico","Web","N/A","A solicitud","https://ilvalle.com.co/transparencia/correo-electronico-para-contactarnos/","Subgerencia General y Juridica","Subgerencia General y Juridica"]
[null,"Solicitudes, peticiones, quejas, reclamos y denuncias","Servicio en linea dispuesto para el ciudadano con el fin de realizar peticiones, quejas, reclamos, sugerencias o denuncias que se requieren presentar ante la Entidad","Español","Electrónico","Web","N/A","A solicitud","https://ilvalle.com.co/derecho-de-peticion/","Subgerencia General y Juridica","Subgerencia General y Juridica"]
[null,"Dirección de contacto","Contiene la información de la dirección fisica a la cual el ciudadano se puede acercar a presentar una solicitud.","Español","Electrónico","Web","N/A","N/A","https://ilvalle.com.co/transparencia/correo-electronico-para-contactarnos/","Subgerencia General y Juridica","Subgerencia General y Juridica"]
[null,"Correo Electrónico Notificaciones judiciales","Contiene la información del correo Electrónico para la realización de notificaciones judiciales dispuesto por la ILV","Español","Electrónico","Web","N/A","A solicitud","https://ilvalle.com.co/transparencia/correo-electronico-para-notificaciones-judiciales/","Subgerencia General y Juridica","Subgerencia General y Juridica"]
[null,"Politica tratamiento datos personales","Documento que da a conocer a todas las personas los derechos asociados  a los datos personales que la  ILV  haya recogido sobre ellas en bases de datos o archivos, y las demás  libertades y garantías constitucionales de acuerdo a la ley 1581 del 2012","Español","Electrónico","Pdf","N/A","A solicitud","https://ilvalle.com.co/politica-privacidad/","Oficina de Sistemas ","Oficina de Sistemas "]
["2. Información de Interés.","Datos Abiertos","Indice de los datos primarios o sin procesar, que se encuentran en formatos estándar e interoperables que facilitan el acceso y reutilización de la ciudadania","Español","Electrónico","Pdf","N/A","Anual","https://ilvalle.com.co/transparencia/publicacion-de-datos-abiertos/","Subgerencia General y Juridica","Subgerencia General y Juridica"]
[null,"Estudios, investigaciones y otras publicaciones","Hace referencia a los estudios, investigaciones y otro tipo de publicaciones de interes para los ciudadanos, usuarios y grupos de interes","Español","Electrónico","Pdf",2014,"A solicitud","https://ilvalle.com.co/website/wp-content/uploads/2020/09/2.2-Estudios-investigaciones-y-publicaciones.pdf","Subgerencia General y Juridica","Subgerencia General y Juridica"]
[null,"Convocatorias","Contiene las convocatorias dirigidas a ciudadanos, usuarios y grupos de interes especificando objetivos y fechas de participacion -ej: capacitaciones, becas de estimulos etc","Español","Electrónico","Pdf","N/A","A solicitud","https://ilvalle.com.co/website/wp-content/uploads/2020/09/2.3-Convocatorias.pdf","Oficina de gestión humana","Oficina de gestión humana"]
[null,"Preguntas Frecuentes","Listado de preguntas frecuentes con las respectivas respuestas, relacionadas con la gestión, servicios y tramites de la ILV","Español","Electrónico","Pdf","N/A","A solicitud","https://ilvalle.com.co/preguntas-frecuentes/","Subgerencia  de Planeación","Subgerencia  de Planeación"]
[null,"Glosario","Conjunto de terminos utilizados relacionados con la actividad del AGN","Español","Electrónico","Pdf","N/A","A solicitud","https://ilvalle.com.co/website/wp-content/uploads/2020/09/Punto-2.5-Glosario.pdf","Todas las dependencias de la ILV","Todas las dependencias de la ILV"]
[null,"Noticias","Contiene la información mas relevante para los usuarios, grupos de interes y ciudadanos relacionadas con la actividad de la ILV","Español","Electrónico","Pdf","N/A","A solicitud","https://ilvalle.com.co/noticias/","Todas las dependencias de la ILV","Todas las dependencias de la ILV"]
[null,"Calendario de actividades","Contiene la información de las fechas claves relacionadas con las actividades desarrolladas por la ILV","Español","Electrónico","Pdf","N/A","Anual","https://ilvalle.com.co/eventos/","Todas las dependencias de la ILV","Todas las dependencias de la ILV"]
[null,"Portal para niños","Contiene la información relacionada con los servicios o actividades dirigida a niños y adolecentes de manera didactica","Español","Electrónico","Pdf","N/A","A solicitud","https://ilvalle.com.co/infantil.html","Todas las dependencias de la ILV","Todas las dependencias de la ILV"]
[null,"Información adicional","Contiene información general que pueda resultar util al ciudadano","Español","Electrónico","Pdf","N/A","A solicitud","https://ilvalle.com.co/#sect-3","Todas las dependencias de la ILV","Todas las dependencias de la ILV"]
[null,"Misión y Visión","Es la información de la mision y la vision del AGN de acuerdo a lo definido en el Sistema de Gestion de Calidad","Español","Electrónico","Pdf","N/A","A solicitud de la dirección","https://ilvalle.com.co/mision-y-vision/","Subgerencia  de Planeación","Subgerencia  de Planeación"]
[null,"Funciones y deberes","Decreto 1303 de 2014","Español","Electrónico","Pdf","N/A","A solicitud","https://ilvalle.com.co/mision-y-vision/","Subgerencia Administrativa","Subgerencia Administrativa"]
[null,"Procesos y Procedimientos","Descripcion de procesos y procedimientos para la toma de decisiones al interior de la Entidad","Español","Electrónico","Pdf","N/A","A solicitud","https://ilvalle.com.co/website/wp-content/uploads/2020/10/3.3.-PROCESOS-Y-PROCEDIMIENTOS.pdf","Subgerencia  de Planeación","Subgerencia  de Planeación"]
[null,"Organigrama","Es la estructura organica de la ILV","Español","Electrónico","Pdf","N/A","A solicitud","https://ilvalle.com.co/website/wp-content/uploads/2020/10/3.4.-ORGANIGRAMA-ILV-SEP-8-2020.png","Subgerencia  de Planeación","Subgerencia  de Planeación"]
[null,"Directorio telefónico","Directorio de Funcionarios y contratistas","Español","Electrónico","Pdf","N/A","De acuerdo a la necesidad","https://ilvalle.com.co/website/wp-content/uploads/2020/10/3.5.-DIRECTORIO-INFORMACION-SERVIDORES-PUBLICOS.pdf","Subgerencia  de Planeación","Subgerencia  de Planeación"]
[null,"Entidades del Sector","Listado de Entidades que integran el sector cultura","Español","Electrónico","Pdf","N/A","A solicitud","https://ilvalle.com.co/entidades-y-agremiaciones/","Subgerencia  de Planeación","Subgerencia  de Planeación"]
[null,"Agremiaciones","Listado de agremiaciones relacionadas con la actividad de la ILV","Español","Electrónico","Pdf","N/A","A solicitud","https://ilvalle.com.co/website/wp-content/uploads/2020/09/3.7-Directorio-de-agremiaciones-y-asociaciones-.pdf","Subgerencia Administrativa","Subgerencia Administrativa"]
[null,"Oferta de Empleo","Contiene las ofertas de empleo vigentes de la ILV","Español","Electrónico","Pdf","N/A","De acuerdo a la necesidad","https://ilvalle.com.co/transparencia/ofertas-de-empleo/","Subgerencia Administrativa","Subgerencia Administrativa"]
["4. Normatividad","Normativa","Contiene la información relacionada con la normatividad que rige ala ILV","Español","Electrónico","Pdf","N/A","A solicitud","https://ilvalle.com.co/normatividad/","Oficina asesora jurídica","Oficina asesora jurídica"]
["5. Presupuesto","Presupuesto Aprobado","Contiene la informacion relacionada del presupuesto aprobado","Español","Electrónico","Pdf","N/A","Según la necesidad","https://ilvalle.com.co/website/wp-content/uploads/2020/09/5.1-Presupuesto-General-Asignado-2020.pdf","Subgerencia  financiera","Subgerencia  financiera"]
[null,"Ejecución presupuestal histórica","Contiene la información historica relacionada con el presupuesto aprobado y ejecutado de ingresos y gastos anuales ","Español","Electrónico","Pdf","Anual","Anual","https://ilvalle.com.co/transparencia/ejecucion-presupuestal-historica-anual/","Subgerencia  financiera","Subgerencia  financiera"]
[null,"Estados financieros","Contiene la información de los estados financieros","Español","Fisico y Digital","Pdf","Trimestral","Trimestral","https://ilvalle.com.co/transparencia/estados-financieros/","Subgerencia  financiera","Subgerencia  financiera"]
["6. Planeación","Políticas y Planes","Contiene la información relacionada con las politicas y lineamientos de la ILV","Español","Electrónico","Pdf","N/A","A solicitud de la dirección","https://ilvalle.com.co/transparencia/planes-de-accion/","Subgerencia  de Planeación","Subgerencia  de Planeación"]
[null,"Manuales","Contiene las instrucciones que se consideren necesarios para la ejecución de una labor relacionada con las actividades de la ILV","Español","Electrónico","Pdf","De acuerdo a necesidad","A solicitud","https://ilvalle.com.co/transparencia/politicas-lineamientos-y-manuales/","Todos los procesos","Subgerencia  de Planeación"]
[null,"Plan Estratégico Institucional","Plan Estratégico","Español","Electrónico","Pdf","N/A","A solicitud de la dirección","https://ilvalle.com.co/transparencia/planes-estrategicos/","Subgerencia  de Planeación","Subgerencia  de Planeación"]
[null,"Plan de acción ","Plan de acción institucional y planes de acción por dependencia","Español","Electrónico","Pdf","Anual","No se actualizan","https://ilvalle.com.co/transparencia/planes-de-accion/","Subgerencia  de Planeación","Subgerencia  de Planeación"]
[null,"Plan de Rendición de Cuentas","Plan de Rendición de Cuentas","Español","Electrónico","Pdf","N/A","No se actualizan","https://ilvalle.com.co/website/wp-content/uploads/2020/09/6.5-Participacion-en-la-Formulacion-de-Politicas.pdf","Subgerencia  de Planeación","Subgerencia  de Planeación"]
[null,"Servicio al Ciudadano","Plan de servicio al Ciudadano","Español","Electrónico","Pdf",null,"A solicitud","https://ilvalle.com.co/transparencia/planes-anticorrupcion/","Subgerencia  de Planeación","Subgerencia  de Planeación"]
[null,"Plan Anticorrupción","Plan Anticorrupción","Español","Electrónico","Pdf","Anual","Antes del 30 de Enero de cada año","https://ilvalle.com.co/transparencia/planes-anticorrupcion/","Subgerencia  de Control Interno","Subgerencia  de Control Interno"]
[null,"Plan de Gasto Público","Plan de Gasto Público","Español","Electrónico","Pdf","Anual","Trimestral","https://ilvalle.com.co/transparencia/planes-de-mejoramiento/","Subgerencia  financiera","Subgerencia  financiera"]
[null,"Programas y Proyectos","Contiene la información de los proyectos de inversión ejecutados en cada vigencia con cargo a recursos publicos","Español","Electrónico","Pdf","Anual","Anual","https://ilvalle.com.co/transparencia/programas-y-proyectos-en-ejecucion/","Subgerencia  de Planeación","Subgerencia  de Planeación"]
[null,"Metas, objetivos e indicadores de gestión","Contiene la información de Metas, objetivos e indicadores de gestión de conformidad con la normatividad vigente","Español","Electrónico","Pdf","A solicitud","A solicitud de los lideres del proceso","https://ilvalle.com.co/transparencia/metas-objetivos-e-indicadores-de-gestion-y-o-desempeno/","Subgerencia  de Planeación","Subgerencia  de Planeación"]
[null,"Informes de empalme","Contiene la información de los informes de empalme","Español","Electrónico","Pdf","A solicitud","A solicitud","https://ilvalle.com.co/transparencia/informes-de-empalme/","Subgerencia  de Planeación","Subgerencia  de Planeación"]
[null,"Informe a la Contraloría","Informe a la Contraloría","Español","Electrónico","Pdf","Trimestral\nSemestral \nAnual","No se actualiza","https://www.contraloriavalledelcauca.gov.co/publicaciones/1425/procesos-auditores-realizados-en-la-vigencia-2019/","Subgerencia  de Control Interno","Subgerencia  de Control Interno"]
[null,"Informe pormenorizado de Control Interno","Informe pormenorizado de Control Interno","Español","Electrónico","Pdf","cada 4 meses","No se actualiza","https://ilvalle.com.co/transparencia/reportes-de-control-interno/","Subgerencia  de Control Interno","Subgerencia  de Control Interno"]
[null,"Plan de Mejoramiento Institucional - PMI","Plan de Mejoramiento Institucional - PMI","Español","Electrónico","Pdf","Semestral","No se actualiza","https://ilvalle.com.co/transparencia/planes-de-mejoramiento/","Subgerencia  de Control Interno","Subgerencia  de Control Interno"]
[null,"Entes de Control","Entes de Control","Español","Electrónico","Pdf","N/A","A solicitud","https://ilvalle.com.co/transparencia/entes-de-control-que-vigilan-al-sujeto-obligado-y-mecanismos-de-supervision/","Oficina asesora jurídica","Oficina asesora jurídica"]
[null,"Proyectos población vulnerable","Contiene la información de las normas, politicas o programas dirigidos a la poblacion vulnerable","Español","Electrónico","Pdf","N/A","A solicitud","https://ilvalle.com.co/transparencia/informacion-para-poblacion-vulnerable/","Subgerencia General y Juridica","Subgerencia General y Juridica"]
[null,"Defensa Jurídica","Informe","Español","Electrónico","Pdf","Semestral","No se actualiza","https://ilvalle.com.co/website/wp-content/uploads/2020/09/7.6-Defensa-Judicial.pdf","Subgerencia General y Juridica","Subgerencia General y Juridica"]
["8. Contratación","Manual de Contratación","Manual de contratacion","Español","Electrónico","Pdf","N/A","Cada vez que se requiera por normatividad","https://ilvalle.com.co/website/wp-content/uploads/2020/09/8.3-Publicacion-de-Procedimientos-o-MANUAL-DE-CONTRATACION.pdf","Subgerencia General y Juridica","Subgerencia General y Juridica"]
[null,"Información contractual","Contratos gestionados ","Español","Electrónico","Pdf","Anual","Cada vez que se requiera ","https://ilvalle.com.co/website/wp-content/uploads/2020/09/8.1-Publicacion-de-la-Informacion-Contractual-2020.pdf","Subgerencia General y Juridica","Subgerencia General y Juridica"]
[null,"Plan Anual de Adquisiciones","Contiene la información del plan anual de adquisiciones","Español","Electrónico","Pdf","Anual","Cada vez que se requiera ","https://ilvalle.com.co/website/wp-content/uploads/2020/09/8.4-Plan-Anual-de-Adquisiciones-actualizado.pdf","Subgerencia General y Juridica","Subgerencia General y Juridica"]
["9. Trámites y Servicios","Trámites y Servicios","Contiene la información de los tramites y servicios que la ILV ha dispuesto para los ciudadanos","Español","Electrónico - Suit","Pdf","N/A","Cada vez que se requiera","https://ilvalle.com.co/transparencia/tramites-y-servicios/","Subgerencia General y Juridica","Subgerencia General y Juridica"]
[null,"Indicadores y resultados de satisfacción","Informe de resultado de encuestas de satisfacción a los usuarios de trámites y servicios","Español","Electrónico","Pdf","Anual","Cada vez que se requiera","https://ilvalle.com.co/transparencia/metas-objetivos-e-indicadores-de-gestion-y-o-desempeno/","Subgerencia General y Juridica","Subgerencia General y Juridica"]
["10. Instrumentos de gestión de información pública","Registro de activos de información","Inventario de la información pública que la  ILV genera, obtiene, adquiere, transforma o controla en su calidad de tal.","Español","Electrónico","Pdf","Una vez","Anual","https://ilvalle.com.co/website/wp-content/uploads/2020/09/Punto-10.02-Registro-de-activos-de-informacion.pdf","Todas las dependencias de la ILV","Oficina  de Sistemas"]
[null,"Índice de Información Clasificada y Reservada","Es el índice actualizado de los actos, documentos e informaciones calificados como clasificados o reservados, de conformidad a la ley 1712 del 2014","Español","Electrónico","Pdf","Una vez","Anual","https://ilvalle.com.co/website/wp-content/uploads/2020/09/Punto-10.03-Indice-de-informacion-clasificada-y-reservada.pdf","Todas las dependencias que produzcan o custodien este tipo de informacion","Oficina  de Sistemas"]
[null,"Esquema de Publicación"," Es el instrumento del que dispone la ILV para informar, de forma ordenada, a la ciudadanía, interesados y usuarios, sobre la información publicada y que publicará, conforme al principio de divulgación proactiva de la información ","Español","Electrónico","Pdf","Una vez","A solicitud","https://ilvalle.com.co/website/wp-content/uploads/2020/09/Punto-10.04-Esquema-de-publicacion-de-informacion.pdf","Subgerencia General y Juridica","Subgerencia General y Juridica"]
[null,"Programa de Gestión Documental","Contiene la información de la gestión documental, donde se establecen las estrategias que permitan la implementación y el mejoramiento de la prestación de servicios, desarrollo de los procedimientos, la implementación de programas específicos del proceso de gestión documental.","Español","Electrónico","Pdf","Una vez","Cuatrienal","https://ilvalle.com.co/transparencia/programa-de-gestion-documental/","Subgerencia General y Juridica","Subgerencia General y Juridica"]
[null,"Registro de Publicaciones","Es el registro de publicaciones que contiene los documentos publicados de acuerdo a la ley 1712 del 2014","Español","Electrónico","Pdf","N/A","A solicitud","https://ilvalle.com.co/transparencia/registro-de-publicaciones/","Todas las áreas de la ILV","Subgerencia General y Juridica"]
[null,"Quejas y reclamos respecto a omisiones o acciones","Contiene la información de los mecanismos establecidos para que el ciudadanos pueda presentar quejas y reclamos respecto a omisiones o acciones","Español","Electrónico","Pdf","N/A","A solicitud","https://ilvalle.com.co/transparencia/mecanismos-para-presentar-quejas-y-reclamos-en-relacion-con-omisiones-o-acciones-del-sujeto-obligado/","Subgerencia General y Juridica","Subgerencia General y Juridica"]
[null,"Informe de PQRSD","Informe de seguimiento PQRSD","Español","Electrónico","Pdf","Anual","Trimestral","https://ilvalle.com.co/website/wp-content/uploads/2020/09/Punto-10.10-informe-de-PQRS.pdf","Subgerencia General y Juridica","Subgerencia General y Juridica"]
["11. Transparencia pasiva","Medios de seguimiento para la consulta del estado de las solicitudes de información pública","Medios por los cuales se puede hacer seguimiento a la misma mediante el número o código de seguimiento asignado","Español","Electrónico","Pdf","N/A","A solicitud","https://ilvalle.com.co/website/wp-content/uploads/2020/09/Punto-10.10-informe-de-PQRS.pdf","Subgerencia General y Juridica","Subgerencia General y Juridica"]
[null,"Formulario para la recepción de solicitudes de información pública."," Formulario electrónico para la recepción de solicitudes ","Español","Electrónico","Pdf","N/A","A solicitud","https://ilvalle.com.co/derecho-de-peticion/","Subgerencia General y Juridica","Subgerencia General y Juridica"]
["12. Accesibilidad Web.","Accesibilidad en medios electrónicos para la población en situación de discapacidad visual","Criterios utilizados en los contenidos producidos por la ILV para facilitar su acceso a la población en situación de discapacidad visual","Español","Electrónico","Pdf","A solicitud","A solicitud","https://ilvalle.com.co/transparencia/informacion-para-poblacion-vulnerable/","Oficina  de Sistemas","Oficina de Sistemas"]
["13. Habeas Data","Ley 1581 de 2012 Protección de Datos Personales","Política de tratamiento de datos personales","Español","Electrónico","Pdf","Una vez","Anual","https://ilvalle.com.co/politica-privacidad/","Oficina  de Sistemas","Oficina de Sistemas"]

{"sheet":"ACTA CONTRALORIA","index":3,"n_rows":146,"n_cols":9,"rows_kept":146,"hidden":true,"merged":[[1,0,1,8],[2,0,2,3],[2,4,3,4],[2,5,3,5],[2,6,2,7],[2,8,3,8],[4,0,25,0],[5,1,25,1],[5,4,25,4],[5,5,25,5],[5,8,25,8],[7,3,10,3],[7,6,10,6],[7,7,10,7],[26,0,26,8],[27,0,27,3],[27,4,28,4],[27,5,28,5],[27,6,27,7],[27,8,28,8],[39,0,48,0],[39,1,48,1],[39,4,48,4],[39,8,48,8],[40,3,48,3],[40,5,48,5],[51,0,59,0],[51,8,59,8],[52,1,59,1],[52,2,52,3],[52,4,59,4],[52,5,59,5],[52,6,53,6],[52,7,53,7],[60,0,63,0],[60,1,61,1],[60,4,61,4],[60,5,61,5],[60,6,61,6],[60,7,61,7],[60,8,63,8],[62,1,63,1],[62,4,63,4],[62,5,63,5],[62,6,63,6],[62,7,63,7],[64,0,65,0],[64,1,65,1],[64,4,65,4],[64,5,65,5],[64,8,65,8],[67,0,68,0],[67,8,68,8],[69,0,72,0],[69,1,72,1],[69,4,72,4],[69,5,72,5],[69,6,70,6],[69,7,70,7],[69,8,72,8],[74,0,75,0],[74,1,75,1],[74,4,75,4],[74,5,75,5],[74,6,75,6],[74,7,75,7],[74,8,75,8],[78,0,79,0],[78,8,79,8],[81,8,82,8],[83,0,100,0],[83,8,100,8],[84,1,88,1],[84,4,88,4],[84,5,88,5],[88,2,88,3],[90,1,100,1],[90,3,93,3],[90,4,100,4],[90,5,100,5],[90,6,91,6],[90,7,91,7],[94,3,100,3],[94,6,95,6],[94,7,95,7],[101,0,116,0],[101,5,116,5],[101,8,116,8],[104,1,116,1],[104,4,116,4],[105,3,116,3],[117,0,133,0],[117,8,133,8],[119,1,132,1],[119,4,132,4],[119,5,132,5],[120,3,132,3],[123,6,124,6],[123,7,124,7],[134,0,135,0],[134,8,135,8],[137,0,145,0],[137,1,141,1],[137,4,141,4],[137,5,141,5],[137,6,138,6],[137,7,138,7],[137,8,145,8],[138,3,141,3],[142,1,145,1],[142,4,145,4],[142,5,145,5],[143,3,145,3]]}
[]
["Anexo 2:  Resolución MinTIC 3564 de 2015"]
["Categoría de Información",{"$nulls":3},"Normatividad ","Área Responsable del suministro de la información  ","Cumple",null,"Observaciones de la Verificación de Cumplimiento Según Acta de la Contraloria"]
["Item","Punto Solicitado","Literales de Cumplimiento","Descripción ",null,null,"Resultado","Ubicación en el Sitio Web"]
[1,"1.14. Solicitud de información con identidad reservada",null,"El sujeto obligado debe disponer de un enlace que redirija al formato de solicitud de información con identidad reservada, dispuesto por la Procuraduría General de la Nación en su página web.","Resolución 3564 de 2015/Anexo2/punto 1.14",null,"No",null,"Se insta a que el formulario electrónico de solicitudes, peticiones, quejas, reclamos y denuncias, incluya lo que señala la Resolución 3564 de 2015 en su Anexo 2 en su punto 1.14 "]
[null,"2. CAMPOS MíNIMOS DEL FORMULARIO","Tipo Solicitud","En este campo se deben desplegar los tipos de solicitud establecidos por la ley (petición, queja, reclamo, sugerencia solicitud o solicitud de información pública).\nEn caso de formularse un derecho de petición se debe aclarar al peticionario que de conformidad con los mandatos de la Ley 1755 de 2015, su petición deberá contener los nombres y apellidos completos del solicitante, de su representante\ny/o apoderado, el objeto de la petición y las razones en las que fundamenta su petición, aclarando que en ningún caso podrá ser rechazada la petición por motivos de fundamentación inadecuada o incompleta.","Resolución 3564 de 2015/Anexo2/Punto2",null,"No",null,"e incluir lo que  concierne al punto 2 de la Resolución en cuanto a los campos mínimos del formulario, indicando todos los tipos de solicitud establecidos por ley, la opción de elegir el medio de respuesta los costos y asociados a la respuesta."]
[null,null,"Tipo de solicitante","Persona natural; persona jurídica; niños, niñas y adolescentes, apoderado",null,null,"No"]
[null,null,"Primer Nombre","El conjunto de palabras con las que jurídica y oficialmente se individualiza, identifica y designa cada persona. Toda persona tiene derecho a su individualidad y por consiguiente al nombre que por ley le corresponde. El nombre comprende, el (los) nombre(s) y el (los) apellido(s).",null,null,"No"]
[null,null,"Segundo Nombre (opcional)"]
[null,null,"Primer Apellido"]
[null,null,"Segundo Apellido (opcional)"]
[null,null,"Tipo de identificación","Tipo de identificación C.C. _ C.E. _ R.C. _ T.I. _\nOtro:\n",null,null,"No"]
[null,null,"Número de identificación","Número de identificación de la persona que radica la solicitud de información.",null,null,"No"]
[null,null,"Razón Social","Hace referencia al nombre y firma por los cuales es conocida una compañía mercantil de forma colectiva, comanditaria o anónima.",null,null,"No"]
[null,null,"NIT","Número de identificación tributario asignado a personas jurídicas y naturales por la Dirección de Impuestos y Aduanas Nacionales.",null,null,"No"]
[null,null,"País","Nombre o denominación con el que se identifica una Nación, región o territorio que forma una unidad geográfica, política y cultural. Para el caso, corresponde al país de la persona que radica la solicitud de información, el cual debe corresponder a una lista desplegable para que el usuario haga la elección.",null,null,"No"]
[null,null,"Departamento","Contiene el nombre de entidades territoriales, las cuales tienen autonomía para la administración de los asuntos seccionales y la planificación y promoción del desarrollo económico y social dentro de su territorio en los términos establecidos por la Constitución. Para el caso, corresponde al departamento de la persona que radica la solicitud de información, el cual debe corresponder a una lista desplegable para que el usuario haga la elección.",null,null,"No"]
[null,null,"Municipio","Contiene el nombre de la entidad territorial fundamental de la división político administrativa del Estado Colombiano, con autonomía política, fiscal y administrativa dentro de los límites que le señalen la Constitución y las leyes de la República. Para el caso, corresponde al municipio de la persona que radica la solicitud de información, el cual debe corresponder a una lista desplegable para que el usuario haga la elección.",null,null,"No"]
[null,null,"Dirección","Define el conjunto de signos alfanuméricos mediante los cuales se identifica la ubicación de un sujeto u objeto en una zona geográfica determinada. Para el caso, corresponde a la dirección de la persona que radica la solicitud de información.",null,null,"No"]
[null,null,"Correo Electrónico","Identificador específico de Internet que contiene una cadena de caracteres localmente interpretada seguida por el carácter especial @ y posteriormente un dominio Internet, que permite a los usuarios enviar y recibir mensajes. Para el caso, corresponde al correo electrónico de la persona que radica la solicitud de información.",null,null,"No"]
[null,null,"Teléfono fijo","Corresponde al número telefónico fijo de la persona que radica la solicitud de información.",null,null,"No"]
[null,null,"Teléfono móvil","Corresponde al número telefónico móvil de la persona que radica la solicitud de información.",null,null,"No"]
[null,null,"Contenido de la solicitud","Corresponde a la caja de texto donde se detalla la solicitud de información, teniendo en cuenta que de conformidad con los mandatos de la Ley 1712 de 2014 no se requiere justificación.\n",null,null,"No"]
[null,null,"Archivos o documentos","El formulario debe contar con un espacio para que los usuarios envíen documentos o archivos como soporte de su solicitud (archivos de texto, hoja de cálculo, video, audio, imágenes, entre otros). Para esto el sujeto obligado debe establecer un sistema de seguridad en la recepción de dichos documentos.",null,null,"No"]
[null,null,"Opción para elegir el medio de respuesta","El formulario debe contener un campo que permita al usuario elegir el medio por el cual quiere recibir respuesta de la solicitud de información pública.",null,null,"No"]
[null,null,"Información sobre posibles costos asociados a la respuesta","El formulario debe contener un campo en que informe sobre los costos de reproducción de la información pública, individualizando el costo unitario de los diferentes tipos de formato a través de los cuales se puede reproducir la información.",null,null,"No"]
["Anexo 1:  Resolución MinTIC 3564 de 2015"]
["Categoría de Información",{"$nulls":3},"Normatividad ","Área Responsable del suministro de la información  ","Cumple",null,"Observaciones de la Verificación de Cumplimiento Según Acta de la Contraloria"]
["Item","Punto Solicitado","Literales de Cumplimiento","Descripción ",null,null,"Resultado","Ubicación en el Sitio Web"]
[1,"1.4. Políticas de seguridad de la información del sitio web y protección de datos personales",null,"El sujeto obligado debe tener un enlace que dirija a las políticas de seguridad de la información además de las condiciones de uso de la información referente a la protección de datos personales publicada en el sitio web, según lo establecido en la Ley 1581 de 2012.","Resolución 3564 de 2015/Anexo1/punto 1.4",null,"No",null,"Se insta a incluir las políticas de seguridad de la información en la sección de Transparencia según señala la Resolución 3564 de 2015 en su anexo 1 punto 1.4"]
[2,"2.2. Estudios, investigaciones y otras publicaciones",null,"El sujeto obligado debe publicar de manera organizada estudios, investigaciones y otro tipo de publicaciones de interés para ciudadanos, usuarios y grupos de interés, definiendo una periodicidad para estas publicaciones. En virtud del principio de la divulgación proactiva de la información, los sujetos obligados podrán publicar información de interés.","Resolución 3564 de 2015/Anexo1/punto 2.2",null,"No",null,"Se insta a que las publicaciones de que trata el punto 2.2 del anexo 1 de la Resolución 3564 de 2015 deI Ministerio de las Tecnologías de la Información y las Comunicaciones, se incluyan en la sección de Transparencia."]
[3,"2.3. Convocatorias",null,"El sujeto obligado debe publicar convocatorias dirigidas a ciudadanos, usuarios y grupos de interés, especificando objetivos, requisitos y fechas de participación en dichos espacios.","Resolución 3564 de 2015/Anexo1/punto 2.3",null,"No",null,"Se insta a que las convocatorias para el público que tiene la entidad y de que trata el punto 2.3 del anexo 1 de la Resolución 3564 de 2015 se incluya en la sección de Transparencia y Acceso a la lnformación."]
[4,"2.4. Preguntas y respuestas frecuentes",null,"El sujeto obligado ofrece una lista de preguntas frecuentes con las\nrespectivas respuestas, relacionadas con su gestión y los servicios y trámites que presta. Esta debe actualizarse periódicamente de acuerdo con las consu ltas realizadas por los usuarios, ciudadanos y\ngrupos de interés a través de los diferentes canales disponibles.","Resolución 3564 de 2015/Anexo1/punto 2.4",null,"No",null,"Se insta a que las preguntas y respuestas frecuentes exigidas en I punto 2.4 del anexo 1 de la Resolución 3564 de 2015 se incluyan en la Sección de Transparencia, como dispone la Resolución."]
[5,"2.5. Glosario",null,"El sujeto obligado ofrece un glosario que contenga el conjunto de términos que usa o que tienen relación con su actividad.","Resolución 3564 de 2015/Anexo1/punto 2.5",null,"No",null,"Se insta a publicar el glosario de que trata el punto 2.5 del anexo 1 de la Resolución 3564 de 2015 en la sección de Transparencia. "]
[6,"2.6. Noticias",null,"El sujeto obligado habilita una sección que contenga las noticias más relevantes para sus usuarios, ciudadanos y grupos de interés y que estén relacionadas con su actividad.","Resolución 3564 de 2015/Anexo1/punto 2.6",null,"No",null,"Se insta a que las noticias de que trata el punto 2.6 del anexo 1 de la Resolución 3564 de 2015 se incluya en la sección de Transparencia."]
[7,"2.7. Calendario de actividades",null,"El sujeto obligado habilita un calendario de eventos y fechas clave\nrelacionadas con sus procesos misionales","Resolución 3564 de 2015/Anexo1/punto 2.7",null,"No",null,"Se insta a que el Calendario de actividades que trata el punto 2.7 del anexo 1 de la Resolución 3564 de 2015 se incluya en la sección de Transparencia."]
[8,"2.8. Información para niños, niñas y adolescentes",null,"El sujeto obligado diseña y publica información sobre sus servicios o sus actividades, dirigida a niños, niñas y adolescentes de manera didáctica.","Resolución 3564 de 2015/Anexo1/punto 2.8",null,"No",null,"Se insta a que se incluya la información para niños y jóvenes según se señala en la Resolución 3564 de 2015 en su anexo 1 punto 2.8."]
[9,"3.2. Funciones y deberes (error acta de la procuraduria dice: 3.3)",null,"El sujeto obligado debe publicar sus funciones y deberes de acuerdo con su norma de creación o reestructuración. Si alguna norma le asigna funciones adicionales, éstas también se deben incluir en este punto.","Resolución 3564 de 2015/Anexo1/punto 3.2",null,"No",null,"Se insta a tener una categoría con las Funciones y deberes de la entidad cómo se señala en la Resolución 3564 de 2015 en su anexo 1 punto 3.3."]
[10,"3.4. Organigrama",null,"El sujeto obligado publica la estructura orgánica del sujeto obligado de manera gráfica y legible, en un formato accesible y usable. Adicionalmente publica una descripción de la estructura\norgánica, donde se dé información general de cada división o dependencia.","Resolución 3564 de 2015/Anexo1/punto 3.4",null,"No",null,"Se insta a adecuar el organigrama según lo que señala el punto 3.4 del anexo 1 de la Resolución 3564 de 2015."]
[11,"3.5. Directorio de información de servidores públicos, empleados y contratistas","a. Nombres y apellidos completos.","El sujeto obligado, publica en formato accesible y reutilizable, el directorio de información de los servidores públicos, empleados\ny contratistas, incluyendo aquellos que laboran en las sedes, áreas, divisiones, departamentos y/o regionales según corresponda, con la siguiente información:","Resolución 3564 de 2015/Anexo1/punto 3.5/Decreto 103/Articulo 5/Paragrafo 1",null,"No",null,"Se insta a incluir el link al Sistema de Información del Empleo Público - SIGEP según se indica en la Resolución 3564 de 2015 en su anexo 1 punto 3.5 y el Decreto 103 de 2015 en su artículo 5 parágrafo 1."]
[null,null,"b. País, Departamento y Ciudad de nacimiento.","El sujeto obligado debe actualizar esta información cada vez que ingresa o se desvincula un servidor público o contratista. Para las entidades u organismos públicos el requisito se entenderá cumplido a\ntravés de un enlace a la publ icación de la información que contiene el directorio en el Sistema de Información de Empleo Público - SIGEP.",null,null,"No"]
[null,null,"c. Formación académica.",{"$nulls":3},"No"]
[null,null,"d. Experiencia laboral y profesional.",{"$nulls":3},"No"]
[null,null,"e. Empleo, cargo o actividad que desempeña (En caso de contratistas el rol que desempeña con\nbase en el objeto contractual).",{"$nulls":3},"No"]
[null,null,"f. Dependencia en la que presta sus servicios en el sujeto obligado o institución",{"$nulls":3},"No"]
[null,null,"g. Dirección de correo electrónico institucional del servidor público, empleado y/o contratista.",{"$nulls":3},"No"]
[null,null,"h. Teléfono Institucional y extensión del servidor público, empleado y/o contratista.",{"$nulls":3},"No"]
[null,null,"i. Escala salarial según las categorías para servidores públicos y/o empleados del sector privado.",{"$nulls":3},"No"]
[null,null,"j. Objeto, valor total de los honorarios, fecha de inicio y de terminación, cuando se trate contratos\nde prestación de servicios.",{"$nulls":3},"No"]
[12,"3.6. Directorio de entidades",null,"El sujeto obligado debe publicar el listado de entidades que integran el sector/rama/organismo, con enlace al sitio Web de cada una de éstas, en el caso que aplique.","Resolución 3564 de 2015/Anexo1/punto 3.6",null,"No",null,"Se insta a publicar el Directorio de entidades según indica la Resolución 3564 de 2015 en su anexo 1 punto 3.6"]
[13,"3.7. Directorio de agremiaciones, asociaciones y otros grupos de interés",null,"El sujeto obligado pública el listado de las principales agremiaciones o asociaciones relacionadas con la actividad propia del sujeto\nobligado, con enlace al sitio Web de cada una de éstas en caso de existir. Así mismo, publica los datos de contacto de los principales grupos de interés y/u organizaciones sociales o poblacionales. A nivel\nterritorial esta información debe ser publicada en la sección de instancias de participación ciudadana.","Resolución 3564 de 2015/Anexo1/punto 3.7",null,"No",null,"Se insta a incluir el Directorio de agremiaciones,\nasociaciones y otros grupos de interés de que trata el punto 3.7 del anexo 1 de la Resoluc ón 3564 de 2015, en la sección de Transparencia."]
[14,"4. Normatividad",null,"Contiene la información relacionada con la normatividad que rige al sujeto obligado, determina su competencia y le es aplicable a su actividad, así como aquella que produce para el desarrollo de sus\nfunciones. La siguiente información debe estar publicada y agrupada en una misma sección del sitio web del sujeto obligado de la siguiente manera","Resolución 3564 de 2015/Anexo1/punto 4",null,"No",null,"Se insta a que la normatividad con la que cuenta la entidad se ajuste a lo que indica la Resolución 3564 de 2015 en su anexo 1 punto 4 y 4.1 literales a, c, d, e, f, g, h."]
[null,"4.1. ","Los sujetos obligados del orden nacional deben publicar la normatividad teniendo en cuenta lo establecido en los siguientes parámetros",null,"Resolución 3564 de 2015/Anexo1/punto 4.1",null,"No"]
[null,null,"b. Los decretos no compilados como los de estructura, salarios, decretos que desarrollan leyes marco, entre otros, deberán aparecer de manera diferenciada. Esta información debe ser descargable."]
[null,null,"c. El decreto único reglamentario sectorial debe ser publicado en un formato que facilite la búsqueda\nde texto dentro del documento así como su continua actualización. En consecuencia, deben evitarse los formatos que reflejen una imagen fija del texto impreso.",{"$nulls":3},"No"]
[null,null,"d. En el documento del Decreto Único Sectorial, todas y cada una de las referencias a Leyes, Decretos u otras normas del sector deben contar con hipervínculos que direccionen a estas normas específicas.",{"$nulls":3},"No"]
[null,null,"e. Con el fin de evitar la desactualización del decreto único reglamentario sectorial, por efecto de\nmodificaciones en las normas compiladas, el sujeto obligado deberá agregar a través de hipervínculos la referencia a todos los actos que adicionen, modifiquen o deroguen cualquiera de sus disposiciones. Dichas modificaciones deberán reflejarse en el sitio web dentro de los quince (15) días siguientes a la expedición de la norma modificatoria.",{"$nulls":3},"No"]
[null,null,"f. Las decisiones judiciales que declaren la nulidad de apartes del Decreto Único, deberán ser incorporadas en ejercicio de la actualización, a través de hipervínculos. Estas referencias así como los respectivos documentos, deberán reflejarse en el sitio web, dentro de los quince (15) días\nsiguientes a la publicación de la decisión.",{"$nulls":3},"No"]
[null,null,"g. En la medida en que el Sistema Único de Información Normativa - SU IN habilite las funcionalidades de consulta focalizada, el sujeto obligado deberán hacer referencia a la norma alojada en dicho sistema.",{"$nulls":3},"No"]
[null,null,"h. Adicionalmente si existen resoluciones, circulares u otro tipo de actos administrativos de carácter general, se debe publicar un listado que indique el tipo de acto, fecha de expedición y una descripción corta del mismo, así como el enlace para su descarga. Al interior de la sección de normatividad, estos documentos deben estar organizados por tipo de norma, temática y fecha de expedición de la más reciente a la más antigua.",{"$nulls":3},"No"]
[15,"6.1 . Políticas, lineamientos y manuales",null,"El sujeto obligado debe publicar sus políticas, lineamientos y\nmanuales, tales como","Resolución 3564 de 2015/Anexo1/punto 6.1",null,"No",null,"Se insta a que las políticas y lineamientos que trata la Resolución 3564 de 2015 en su anexo 1 punto 6.1 literal a y la Ley 1712 de 2014 en su artículo 9 literal d, se incluyan en la sección de\nTransparencia."]
[null,null,"a. Políticas y lineamientos sectoriales e institucionales según sea el caso."]
[null,"Artículo 9. Información mínima obligatoria respecto a la estructura del \nsuieto obligado",null,"Todo sujeto obligado deberá publicar la siguiente información , mínima obligatoria de manera proactiva en los sistemas de información del Estado o  herramientas que lo sustituyan","Ley 1712 de 2014/Articulo 9/Literal d)",null,"No"]
[null,null,"d) Todas las normas generales y reglamentarias, políticas, lineamientos o manuales, las metas y objetivos de las unidades administrativas de conformidad con sus programas operativos y los resultados de las auditorías al ejercicio presupuestaI e indicadores de desempeño;"]
[16,"6.1 . Políticas, lineamientos y manuales","f. Plan Anti trámites para los sujetos obligados que les aplique.",null,"Resolución 3564 de 2015/Anexo1/punto 6.1/literales f y g",null,"No",null,"Se insta a que el Plan Anticorrupción y de Atención al Ciudadano que solicita la Resolución 3564 de 2015 en su anexo 1 punto 6.1 se adecue a la normatividad vigente"]
[null,null,"g. Plan Anticorrupción y de Atención al Ciudadano, de conformidad con el artículo 73 de la Ley 1474\nde 2011 .",{"$nulls":3},"No"]
[17,"6.3. Programas y proyectos en ejecución",null,"El sujeto obligado debe publicar los proyectos de inversión o\nprogramas que se ejecuten en cada vigencia con cargo a recursos públicos. Los proyectos de inversión deben ordenarse según la fecha de inscripción en el Banco de Programas y Proyectos de Inversión\nnacional, departamental, municipal o distrital según sea el caso, según lo establecido en el artículo 77 de la Ley 1474 de 2011 (Estatuto Anticorrupción). La presente obligación se entenderá cumplida si en\nla sección de \"Transparencia y Acceso a la Información Pública\" el sujeto obligado vincula el enlace al Banco de Programas y Proyectos de Inversión, donde se registró el proyecto. Se debe publicar el avance en su ejecución, mínimo cada 3 meses.","Resolución 3564 de 2015/Anexo1/punto 6.3",null,"No",null,"Se insta a publicar los programas y proyectos de inversión se encuentren en el sitio web de acuerdo a lo que señala la Resolución 3564 de 2015 en su anexo 1 punto 6.3."]
[18,"6.4. Metas, objetivos e indicadores de gestión y/o desempeño",null,"El sujeto obligado y las unidades administrativas deben publicar la información relacionada con metas, objetivos e indicadores de\ngestión y/o desempeño, de conformidad con sus programas operativos y los demás planes exigidos por la normatividad. Se debe publicar su estado de avance, mínimo cada tres (3)meses.","Resolución 3564 de 2015/Anexo1/punto 6.4",null,"No",null,"Se insta a publicar el av nce de las metas, objetivos e indicadores de gestión y/o desempeño de acuerdo a lo que les aplique según lo que señala la Resolución 3564 de 2015 en su anexo 1 punto 6.4 y la Ley 1712 de 2014 en su artículo 9 literal d)"]
[null,"Artículo 9. Información mínima obligatoria respecto a la estructura del\nsuieto obligado","d) Todas las normas generales y reglamentarias, políticas, lineamientos o manuales, las metas y objetivos de las unidades administrativas de conformidad con sus programas operativos y los resultados de las auditorías al ejercicio presupuestaI  e indicadores de desempeño;",null,"Ley 1712 de 2014/Articulo 9/Literal d)",null,"No"]
[19,"6.5. Participación en la formulación de políticas",null,"El sujeto obligado debe publicar los mecanismos o procedimientos que deben seguir los ciudadanos, usuarios o interesados para participar en la formulación de políticas, en el controlo en la evaluación de la gestión institucional, indicando:","Resolución 3564 de 2015/Anexo1/punto 6.5",null,"No",null,"Se insta a adecuar lo que concierne a la participación en la formulación de políticas según lo\nque señala la Resolución 3564 de 2015 en su anexo 1 punto 6.5."]
[null,null,"a. Sujetos que pueden participar."]
[null,null,"b. Medios presenciales y electrónicos.",{"$nulls":3},"No"]
[null,null,"c. Áreas responsables de la orientación y vigilancia para su cumplimiento.",{"$nulls":3},"No"]
[20,"6.6. Informes de empalme",null,"El sujeto obligado debe publicar el informe de empalme del representante legal, cuando haya un cambio del mismo. Este informe se debe publicar cuando haya un cambio del representante legal antes de desvincularse del sujeto obligado.","Resolución 3564 de 2015/Anexo1/punto 6.6",null,"No",null,"Se insta a publicar el informe de empalme ue solicita la Resolución 3564 de 2015 en su anexo 1 punto 6.6"]
[21,"7.1 . Informes de gestión, evaluación y auditoría",null,"El sujeto obligado debe publicar todos los informes de gestión, evaluación y auditoría incluyendo ejercicio presupuestal.","Resolución 3564 de 2015/Anexo1/punto 7.1/literal a)",null,"No",null,"Se insta a publicar el informe al ongreso de la República según lo que se señala en la Resolución 3564 de 2015 en su anexo 1 punto 7.1 literal a."]
[null,null,"a. Informe enviado al Congreso/Asamblea/Concejo. Se debe publicar dentro del mismo mes de enviado."]
[22,"7.1 . Informes de gestión, evaluación y auditoría","b. Informe de rendición de la cuenta fiscal a la Contraloría General de la República o a los organismos de control territorial según corresponda, de acuerdo con la periodicidad definida. Se debe publicar dentro del mismo mes de enviado",null,"Resolución 3564 de 2015/Anexo1/punto 7.1/literal b)",null,"No",null,"Se insta a publicar el informe a la cuenta fiscal a la Contraloría General de la Republi a de acuerdo a la Resolución 3564 de 2015 en su anexo 1 punto 7.1 literal b."]
[23,"7.1 . Informes de gestión, evaluación y auditoría","c. Informe de rendición de cuentas a los Ciudadanos, incluyendo la respuesta a las solicitudes realizadas por los ciudadanos, antes y durante el ejercicio de rend ición. Esta publicación se debe hacer dentro del mismo mes de realizado el evento.",null,"Resolución 3564 de 2015/Anexo1/punto 7.1/literal c)",null,"No",null,"Se recomiend que se incluyan las respuestas de los ciudadanos en el informe de rendición de cuentas según lo q e señala la Resolución 3564 de 2015 en su anexo 1 punto 7.1 literal c."]
[24,"7.5. Información para población vulnerable",null,"El sujeto obligado debe publicar las normas, politicas, programas y proyectos dirigidos a población vulnerable (madres cabeza de familia, desplazados, víctimas del conflicto armado, personas en condición de discapacidad, familias en condición de pobreza, niños, adulto mayor, etnias, reinsertados), de acuerdo con su misión y la normatividad\naplicable.","Resolución 3564 de 2015/Anexo1/punto 7.5",null,"No",null,"Se insta a publicar las política , programas, proyectos y normas para población vulnerable de acuerdo el numeral 7.5 del anexo 1 d la Resolución 3564 de 2015, el artículo 9 literal d de la Ley 1712 de 2014"]
[null,"Artículo 9. Información mínima obligatoria respecto a la estructura del\nsuieto obligado","d) Todas las normas generales y reglamentarias, políticas, lineamientos o manuales, las metas y objetivos de las unidades administrativas de conformidad con sus programas operativos y los resultados de las auditorías al ejercicio presupuestaI  e indicadores de desempeño;",null,"Ley 1712 de 2014/Articulo 9/Literal d)",null,"No"]
[25,"7.6. Defensa judicial","d. Riesgo de pérdida.","Los sujetos obligados deben publicar, trimestralmente un informe sobre las demandas contra el sujeto obligado, incluyendo: El sujeto obligado podrá hacer enlace a la información que publique la Agencia de Defensa Jurídica de la Nación, siempre y cuando ésta permita identificar claramente los elementos enunciados anteriormente.","Resolución 3564 de 2015/Anexo1/punto 7.6/literal d)",null,"No",null,"Se insta a ajustar el informe de Defensa Judicial de acuerdo a lo que señala la Resolución 3564 de 2015 en su anexo 1 punto 7.6 literal d"]
[26,"8.2. Publicación de la ejecución de contratos",null,"El sujeto obligado debe publicar las aprobaciones, autorizaciones, requerim ientos o informes del supervisor o del interventor, que prueben la ejecución de los contratos.","Resolución 3564 de 2015/Anexo1/punto 8.2",null,"No",null,"Se insta a que se realice la publicación de la ejecución de contratos de acuerdo a lo que señala la Resolución 3564 de 2015 en su anexo 1 punto 8.2 y el Decreto 103 de 2015 en su artículo 8"]
[27,"Artículo 8°. Publicación de la ejecución de contratos.",null,"Para efectos del cumplimiento de la obligación contenida en el literal g) del artículo 11 de la Ley 1712 de 2014, relativa a la información sobre la ejecución de contratos, el sujeto obligado debe publicar aprobaciones, autorizaciones, requerimientos o informes del supervisor o de interventor, que prueben la ejecución del contrato.","Decreto 103/ Articulo 8",null,"No"]
[28,"10.2. Registro de Activos de Información.",null,null,"Resolución 3564 de 2015/Anexo1/punto 10.2",null,"No",null,"Se insta a complementar el Registros de Activos de Información con el que cuenta la entidad incluyendo el inventario documental completo y publicarlo en www.datos.gov.co, como se e típula en la Resolución 3564 de 2015 en su anexo 1 numeral 10.2 , en la Ley 1712 de 2014 en su artículo 13 y el Decreto 103 de 2015 en sus artículos 37 y 38, para precisar el alcance sobre este punto los funcionarios que atiendenJa visita elevaran la consulta al Grupo de Transparencia para delimitar el alcance de los Registros de Activos de Información."]
[null,"Artículo 13. Registros de Activos de Información","a) Todas las categorías de informacióri publicada por el sujeto obligado.","Todo sujeto obligado deberá crear y mantener actualizado el Registro de Activos de Información haciendo Iistado de: \n","Ley 1712 de 2014/Articulo 13",null,"No"]
[null,null,"b) Todo registro publicado.",{"$nulls":3},"No"]
[null,null,"c) Todo registro disponible para ser solicitado por el público.",{"$nulls":3},"No"]
[null,null,"El Ministerio Público pOdrá establecer estándares en relación a los Registros Activos de Información."]
[null,null,"Todo sujeto obligado deberá asegurarse de que sus Registros de Activos de Información cumplan con los estándares establecidos por el Ministerio Público y con aquellos dictados por el Archivo General de la Nación, en relación a la constitución de las Tablas de Retención Documental -TRD-Y los inventarios documentales."]
[null,"Artículo 37. Concepto del Registro de Activos de Información.",null," El Registro de Activos de Información es el inventario de la información pública que el sujeto obligado genere, obtenga, adquiera, transforme o controle en su calidad de tal.","Decreto 103/ Articulo 37"]
[null,"Artículo 38. Componentes del Registro de Activos de Información. ",null,"El Registro de Activos de Información debe contener, como mínimo, los siguientes componentes:","Decreto 103/ Articulo 38",null,"No"]
[null,null,"(1)\nTodas las categorías de información del sujeto obligado."]
[null,null,"(2)\nTodo registro publicado.",{"$nulls":3},"No"]
[null,null,"(3)\nTodo registro disponible para ser solicitado por el público.",{"$nulls":3},"No"]
[null,null,"Para cada uno de los componentes del Registro de Activos de Información debe detallarse los siguientes datos:","El Registro de Activos de Información debe elaborarse en formato de hoja de cálculo y publicarse en el sitio web oficial del sujeto obligado, así como en el Portal de Datos Abiertos del Estado colombiano o en la herramienta que lo modifique o lo sustituya.\nParágrafo 1°. Entiéndase por Categorías de información, toda información de contenido o estructura homogénea, sea física o electrónica, emanada de un mismo sujeto obligado como resultado del ejercicio de sus funciones y que pueda agruparse a partir de categorías, tipos o clases según sus características internas (contenido) o externas (formato o estructura).\nParágrafo 2°. El sujeto obligado debe actualizar el Registro de Activos de Información de acuerdo con los procedimientos y lineamientos definidos en su Programa de Gestión Documental.\nParágrafo 3°. El Ministerio Público podrá establecer estándares adicionales para el Registro de Activos de Información de los sujetos obligados.",null,null,"No"]
[null,null,"(a) Nombre o título de la categoría de información: término con que se da a conocer el nombre o asunto de la información."]
[null,null,"(b) Descripción del contenido la categoría de información: Define brevemente de qué se trata la información.",{"$nulls":3},"No"]
[null,null,"C) Idioma: Establece el Idioma, lengua o dialecto en que se encuentra la información.",{"$nulls":3},"No"]
[null,null,"(d) Medio de conservación y/o soporte: Establece el soporte en el que se encuentra la información: documento físico, medio electrónico o por algún otro tipo de formato audio visual entre otros (físico, análogo o digital-electrónico).",{"$nulls":3},"No"]
[null,null,"e) Formato: Identifica la forma, tamaño o modo en la que se presenta la información o se permite su visualización o consulta, tales como: hoja de cálculo, imagen, audio, video, documento de texto, etc.",{"$nulls":3},"No"]
[null,null,"(f) Información publicada o disponible. Indica si la información está publicada o disponible para ser solicitada, señalando dónde está publicada y/o dónde se puede consultar o solicitar.",{"$nulls":3},"No"]
[29,"10.3. índice de Información Clasificada y Reservada.",null,null,"Resolución 3564 de 2015/Anexo1/punto 10.3 ",null,"No",null,"Se insta a complementar el Índice de lnformació Clasificada y Reservada y publicarlo en www.datos.gov.co, cómo se estipula en la Resolución 3564 de 2015 en su anexo 1 numeral 10.3 , el artículo 2o·de la Ley 1712 de 2014 y el Decreto 1 3 de 2015 en sus artículos 39 y 40."]
[null,"Artículo 20. Índice de Información clasificada y reservada",null,"Los sujetos  obligados deberán mantener un índice -actualizado de los actos, documentos e informaciones calificados como clasificados o reservados, de conformidad a esta ley. El índice incluirá sus denominaciones, la motivación y la individualización del acto en que conste tal calificación.","Ley 1712 de 2014/Articulo 20",null,"No"]
[null,"Artículo 39. Concepto del Indice de Información Clasificada y Reservada.",null," El Indice de Información Clasificada y Reservada es el inventario de la información pública generada, obtenida, adquirida o controlada por el sujeto obligado, en calidad de tal, que ha sido calificada como clasificada o reservada.","Decreto 103/ Articulo 39",null,"No"]
[null,"Artículo 40. Contenido del Indice de Información Clasificada y Reservada.","(1) Nombre o título de la categoría de información: término con que se da a conocer el nombre o asunto de la información."," El Indice de Información Clasificada y Reservada indicará, para cada información calificada como reservada o clasificada, lo siguiente:","Decreto 103/ Articulo 40",null,"No"]
[null,null,"(2) Nombre o título de la información: Palabra o frase con que se da a conocer el nombre o asunto de la información.","El Indice de Información Clasificada y Reservada debe actualizarse cada vez que una información sea calificada como clasificada o reservada y cuando dicha calificación se levante, conforme a lo establecido en el mismo Indice y en el Programa de Gestión Documental.\nEl índice de Información Clasificada y Reservada será de carácter público, deberá elaborarse en formato de hoja de cálculo y publicarse en el sitio web oficial del sujeto obligado, así como en el Portal de Datos Abiertos del Estado colombiano o en la herramienta que lo modifique o lo sustituya.",null,null,"No"]
[null,null,"(3) Idioma: Establece el Idioma, lengua o dialecto en que se encuentra la información.",{"$nulls":3},"No"]
[null,null,"(4) Medio de conservación y/o soporte: Establece el soporte en el que se encuentra la información: documento físico, medio electrónico o por algún otro tipo de formato audio visual entre otros, (físico-análogo o digital-electrónico).",{"$nulls":3},"No"]
[null,null,"(5) Fecha de generación de la información: Identifica el momento de la creación de la información.",{"$nulls":3},"No"]
[null,null,"(6) Nombre del responsable de la producción de la información: Corresponde al nombre del área, dependencia o unidad interna, o al nombre de la entidad externa que creó la información.",{"$nulls":3},"No"]
[null,null,"(7) Nombre del responsable de la información: Corresponde al nombre del área, dependencia o unidad encargada de la custodia o control de la información para efectos de permitir su acceso.",{"$nulls":3},"No"]
[null,null,"(8) Objetivo legítimo de la excepción: La identificación de la excepción que, dentro de las previstas en los artículos 18 y 19 de la Ley 1712 de 2014, cobija la calificación de información reservada o clasificada.",{"$nulls":3},"No"]
[null,null,"(9) Fundamento constitucional o legal: El fundamento constitucional o legal que justifican la clasificación o la reserva, señalando expresamente la norma, artículo, inciso o párrafo que la ampara.",{"$nulls":3},"No"]
[null,null,"(10)Fundamento jurídico de la excepción: Mención de la norma jurídica que sirve como fundamento jurídico para la clasificación o reserva de la información.",{"$nulls":3},"No"]
[null,null,"(11)Excepción total o parcial: Según sea integral o parcial la calificación, las partes o secciones clasificadas o reservadas.",{"$nulls":3},"No"]
[null,null,"(12)Fecha de la calificación: La fecha de la calificación de la información como reservada o clasificada.\n",{"$nulls":3},"No"]
[null,null,"(13)Plazo de la clasificación o reserva: El tiempo que cobija la clasificación o reserva.",{"$nulls":3},"No"]
[30,"10.4. Esquema de Publicación de Información.",null,null,"Resolución 3564 de 2015/Anexo1/punto 10.4",null,"No",null,"Se insta a publicar el esquema de publicación de lnformació y el esquema participativo del esquema de publicación según lo que señala la Resolución\n3564 de 2 15 en su anexo 1 punto 10.4 y el Decreto 103 de 2015 en sus artículos 41, 42 y 43"]
[null,"Artículo 41. Concepto.",null," El Esquema de Publicación de Información es el instrumento del que disponen los sujetos obligados para informar, de forma ordenada, a la ciudadanía, interesados y usuarios, sobre la información publicada y que publicará, conforme al principio de divulgación proactiva de la información previsto en el artículo 3° de la Ley 1712 de 2014, y sobre los medios a través de los cuales se puede acceder a la misma.","Decreto 103/ Articulo 41",null,"No"]
[null,"Artículo 42. Componentes del Esquema de Publicación de Información","(1) La lista de información mínima publicada en el sitio web oficial del sujeto obligado o en los sistemas de información del Estado, conforme a lo previsto en los artículos go, 10 Y 11 de la Ley 1712 de 2014.","En concordancia con lo establecido en el artículo 12 de la Ley 1712 de 2014, el Esquema de Publicación de Información debe incluir, como mínimo, lo siguiente:","Decreto 103/ Articulo 42",null,"No"]
[null,null,"(2) La lista de la información publicada en el sitio web oficial del sujeto obligado, adicional a la mencionada en el numeral anterior, y conforme a lo ordenado por otras normas distintas a la Ley de Transparencia y del Derecho al Acceso a la Información Pública Nacional.","Para facilitar el acceso a la información, los sujetos obligados publicarán el Cuadro de Clasificación Documental.\nDe acuerdo con lo estipulado en el literal c) del artículo 12 de la Ley 1712 de 2014, el Ministerio Público podrá hacer recomendaciones generales o particulares a los sujetos obligados sobre el Esquema de Publicación de Información.",null,null,"No"]
[null,null,"(3) Información publicada por el sujeto obligado, originada en la solicitud de información divulgada con anterioridad, de que trata el artículo 14 de la Ley 1712 de 2014",{"$nulls":3},"No"]
[null,null,"(4) Información de interés para la ciudadanía, interesados o usuarios, publicada de manera proactiva por el sujeto obligado, relacionada con la actividad misional del sujeto obligado y sus objetivos estratégicos.",{"$nulls":3},"No"]
[null,null,"Para cada una de los anteriores componentes de Esquema de Publicación de Información se debe indicar:",{"$nulls":3},"No"]
[null,null,"(a) Nombre o título de la información: Palabra o frase con que se da a conocer el nombre o asunto de la información."]
[null,null,"(b) Idioma: Establece el Idioma, lengua o dialecto en que se encuentra la información.",{"$nulls":3},"No"]
[null,null,"c) Medio de conservación y/o soporte: Establece el soporte en el que se encuentra la información: documento físico, medio electrónico o por algún otro tipo de formato audio visual entre otros, (físico-análogo o digital-electrónico).",{"$nulls":3},"No"]
[null,null,"(d) Formato: Identifica la forma, tamaño o modo en la que se presenta la información o se permite su visualización o consulta, tales como: hoja de cálculo, imagen, audio, video, documento de texto, etc.",{"$nulls":3},"No"]
[null,null,"e) Fecha de generación de la información: Identifica el momento de la creación de la información.",{"$nulls":3},"No"]
[null,null,"(f) Frecuencia de actualización: Identifica la periodicidad o el segmento de tiempo en el que se debe actualizar la información, de acuerdo a su naturaleza y a la normativa aplicable.",{"$nulls":3},"No"]
[null,null,"(g) Lugar de consulta: Indica el lugar donde se encuentra publicado o puede ser consultado el documento, tales como lugar en el sitio web y otro medio en donde se puede descargar y/o acceder a la información cuyo contenido se describe.",{"$nulls":3},"No"]
[null,null,"(h) Nombre del responsable de la producción de la información: Corresponde al nombre del área, dependencia o unidad interna, o al nombre de la entidad externa que creó la información.",{"$nulls":3},"No"]
[null,null,"(i) Nombre del responsable de la información: Corresponde al nombre del área, dependencia o unidad encargada de la custodia o control de la información para efectos de permitir su acceso",{"$nulls":3},"No"]
[null,"Artículo 43. Procedimiento participativo para la adopción y actualización del Esquema de Publicación.",null," Los sujetos obligados, de acuerdo con el régimen legal aplicable, implementarán mecanismos de consulta a ciudadanos, interesados o usuarios en los procesos de adopción y actualización del Esquema de Publicación de Información, con el fin de identificar información que pueda publicarse de manera proactiva y de establecer los formatos alternativos que faciliten la accesibilidad a poblaciones específica","Decreto 103/ Articulo 43",null,"No"]
[31,"Artículo 11. Información mínima obligatoria respecto a servicios, los procedimientos y funcionamiento del sujeto obligado. ","j) Un registro de publicaciones que contenga los documentos publicados de conformidad con la presente ley y automáticamente disponibles, así como un Registro de Activos de Información;","Todo sujeto obligado deberá publicar la siguiente información mínima obligatoria de manera proactiva:","Ley 1712 de 2014/Articulo 11/literal J",null,"No",null,"Se insta a pu licar el Registro de publicaciones de acuerdo a lo que señala la Ley 1712 de 2014 en su artículo 11 literal j y la Resolución 3564 de 2015 en su anexo 1 punto 10.7."]
[null,"10.7. Registro de publicaciones:","El Registro de Activos de Información, el índice de Información Clasificada y Reservada, el Esquema de Publicación de Información, el Prog rama de Gestión Documental y las tablas de Retención Documental (de conformidad con lo establecido por el AcuerdoNo. 004 de 2013 del Archivo General de la Nación),\ndeben ser adoptados y actualizados por medio de acto administrativo o documento equivalente de acuerdo con el régimen legal al sujeto obligado."," El sujeto obligado debe publicar un registro de publicaciones que\ncontenga los documentos publicados de conformidad con la ley 1712 de 2014 y automáticamente disponibles.","Resolución 3564 de 2015/Anexo1/punto 10.7",null,"No"]
[32,"10.8. Costos de reproducción: ",null,"El sujeto obligado determina los costos de reproducción de la información pública a través de una motivación, que debe ser establecida mediante acto admin istrativo o documento equivalente, suscrito por funcionario o empleado de nivel directivo. En dicha motivación se debe individualizar el costo unitario de los diferentes tipos de formato a través de los cuales se puede reproducir la información.","Resolución 3564 de 2015/Anexo1/punto 10.8",null,"No",null,"Se insta a que los Costos de reprodu ción de la información pública exigidos por la Resolución 3564 de 2015 del anexo 1 en su punto 10.8 se ubique en la sección de Transparencia."]
[33,"10 .10. Informe de peticiones, quejas, reclamos, denuncias y solicitudes de acceso a la información:","Específicamente respecto de las solicitudes de acceso a información pública, el informe debe discriminar la siguiente información mínima:"," El sujeto obligado debe publicar un informe de todas las peticiones, quejas, reclamos, denuncias y solicitudes de acceso a la información recibidas y los tiempos de respuesta relacionados, junto con un\nanálisis resumido de este mismo tema. El sujeto obligado debe definir la periodicidad de publicación de este informe e indicarla en su esquema de publicación de información.","Resolución 3564 de 2015/Anexo1/punto 10.10",null,"No",null,"Se insta a complementar el Informe de PQR S de\nconformid a lo exigido por el artículo 52 del Decreto 103 de 2015 y la Resolución 3564 de 2015 en\nsu anexo 1 numeral 10.10."]
[null,null,"a. El número de solicitudes recibidas.","Los sujetos obligados de la Ley 1712 de 2014, que también son sujetos de la Ley 190 de 1995, podrán incluir los informes de solicitudes de acceso a la información a que se refiere el presente artículo, en\nlos informes de que trata el artículo 54 de la Ley 190 de 1995."]
[null,null,"b. El número de solicitudes que fueron trasladadas a otra institución",{"$nulls":3},"No"]
[null,null,"c. El tiempo de respuesta a cada solicitud.",{"$nulls":3},"No"]
[null,null,"d. El número de solicitudes en las que se negó el acceso a la información.",{"$nulls":3},"No"]
[null,"Artículo 52. Informes de solicitudes de acceso a información","(1)\nEl número de solicitudes recibidas.","De conformidad con lo establecido en el literal h) del artículo 11 de la Ley 1712 de 2014, los sujetos obligados deberán publicar los informes de todas las solicitudes, denuncias y los tiempos de respuesta. Respecto de las solicitudes de acceso a información pública, el informe debe discriminar la siguiente información mínima:","Decreto 103/ Articulo 52",null,"No"]
[null,null,"(2) El número de solicitudes que fueron trasladadas a otra institución.","El informe sobre solicitudes de acceso a información estará a disposición del público en los términos establecidos en el artículo 4° del presente decreto. Parágrafo 1°. Los sujetos obligados de la Ley 1712 de 2014, que también son sujetos de la Ley 190 de 1995, podrán incluir los informes de solicitudes de acceso a la información a que se refiere el presente artículo, en los informes de que trata el artículo 54 de la Ley 190 de 1995.\nParágrafo 2°. El primer informe de solicitudes de acceso a la información deberá publicarse seis meses después de la expedición del presente decreto, para el caso de los sujetos obligados del orden nacional; los entes territoriales deberán hacerlo 6 meses después de la entrada en vigencia de la Ley 1712 de 2014.",null,null,"No"]
[null,null,"(3)\nEl tiempo de respuesta a cada solicitud.",{"$nulls":3},"No"]
[null,null,"(4) El número de solicitudes en las que se negó el acceso a la información.",{"$nulls":3},"No"]

{"sheet":"RESULTADOS","index":4,"n_rows":101,"n_cols":4,"rows_kept":101,"hidden":true,"merged":[[1,1,1,3],[26,1,26,3],[50,1,50,3],[73,1,73,3],[95,1,95,3]]}
[]
[null,"Nivel de Cumplimiento Ley 1712 de 2014"]
[null,"Si",{"$f":"COUNTIF('Ley 1712'!A1:D112, \"Si\")","v":0},{"$f":"C3/C7","v":{"v":0,"d":"0%"}}]
[null,"No",{"$f":"COUNTIF('Ley 1712'!A1:D112, \"NO\")","v":7},{"$f":"C4/C7","v":{"v":0.08045977011494253,"d":"8%"}}]
[null,"Parcial",{"$f":"COUNTIF('Ley 1712'!A2:D113, \"Parcial\")","v":0},{"$f":"C5/C7","v":{"v":0,"d":"0%"}}]
[null,"No Aplica",{"$f":"COUNTIF('Ley 1712'!A3:D114, \"No Aplica\")","v":80},{"$f":"C6/C7","v":{"v":0.9195402298850575,"d":"92%"}}]
[null,null,{"$f":"SUM(C3:C6)","v":87},{"v":1,"d":"100%"}]
{"$rows_empty":19}
[null,"Nivel de Cumplimiento Decreto 103 Reglamentario"]
[null,"Si",{"$f":"COUNTIF(Decreto103!A1:D216, \"Si\")","v":0},{"$f":"C28/C32","v":{"v":0,"d":"0%"}}]
[null,"No",{"$f":"COUNTIF(Decreto103!C5:C216, \"NO\")","v":47},{"$f":"C29/C32","v":{"v":0.27976190476190477,"d":"28%"}}]
[null,"Parcial",{"$f":"COUNTIF(Decreto103!C6:C217, \"Parcial\")","v":0},{"$f":"C30/C32","v":{"v":0,"d":"0%"}}]
[null,"No Aplica",{"$f":"COUNTIF(Decreto103!C7:C218, \"No Aplica\")","v":121},{"$f":"C31/C32","v":{"v":0.7202380952380952,"d":"72%"}}]
[null,null,{"$f":"SUM(C28:C31)","v":168},{"v":1,"d":"100%"}]
{"$rows_empty":18}
[null,"Nivel de Cumplimiento Resolución 3564 de 2015"]
[null,"Si",{"$f":"COUNTIF('Resolución 3564'!A3:B60, \"Si\")","v":0},{"$f":"C52/C56","v":{"$error":"#DIV/0!"}}]
[null,"No",{"$f":"COUNTIF('Resolución 3564'!A3:B60, \"No\")","v":0},{"$f":"C53/C56","v":{"$error":"#DIV/0!"}}]
[null,"Parcial",{"$f":"COUNTIF('Resolución 3564'!A4:B60, \"Parcial\")","v":0},{"$f":"C54/C56","v":{"$error":"#DIV/0!"}}]
[null,"No Aplica",{"$f":"COUNTIF('Resolución 3564'!A4:B60, \"No Aplica\")","v":0},{"$f":"C55/C56","v":{"$error":"#DIV/0!"}}]
[null,null,{"$f":"SUM(C52:C55)","v":0},{"v":1,"d":"100%"}]
{"$rows_empty":17}
[null,"Nivel de Cumplimiento Resolución 3564 de 2015 Según Acta visita Procuraduria"]
[null,"Si",{"$f":"COUNTIF('ACTA CONTRALORIA'!A2:I146, \"Si\")","v":0},{"$f":"C75/C79","v":{"v":0,"d":"0%"}}]
[null,"No",{"$f":"COUNTIF('ACTA CONTRALORIA'!A3:I147, \"No\")","v":124},{"$f":"C76/C79","v":{"v":1,"d":"100%"}}]
[null,"Parcial",{"$f":"COUNTIF('ACTA CONTRALORIA'!A4:I148, \"Parcial\")","v":0},{"$f":"C77/C79","v":{"v":0,"d":"0%"}}]
[null,"No Aplica",{"$f":"COUNTIF('ACTA CONTRALORIA'!A5:I149, \"No Aplica\")","v":0},{"$f":"C78/C79","v":{"v":0,"d":"0%"}}]
[null,null,{"$f":"SUM(C75:C78)","v":124},{"v":1,"d":"100%"}]
{"$rows_empty":16}
[null,"Hallazgo Procuraduria"]
[null,"Si",{"$f":"COUNTIF('Resolución 3564'!A3:B60, \"Si\")","v":0},{"$f":"C97/C101","v":{"$error":"#DIV/0!"}}]
[null,"No",{"$f":"COUNTIF('Resolución 3564'!A4:B60, \"No\")","v":0},{"$f":"C98/C101","v":{"$error":"#DIV/0!"}}]
[null,"Parcial",{"$f":"COUNTIF('Resolución 3564'!A4:B60, \"Parcial\")","v":0},{"$f":"C99/C101","v":{"$error":"#DIV/0!"}}]
[null,"No Aplica",{"$f":"COUNTIF('Resolución 3564'!A4:B60, \"No Aplica\")","v":0},{"$f":"C100/C101","v":{"$error":"#DIV/0!"}}]
[null,null,{"$f":"SUM(C97:C100)","v":0},{"v":1,"d":"100%"}]

{"sheet":"LISTA","index":5,"n_rows":42,"n_cols":1,"rows_kept":42,"hidden":true}
["Resultado"]
["Si"]
["No"]
["Parcial"]
["No Aplica"]
[]
[]
[]
[]
["Consejo Directivo"]
["Dirección General"]
["Oficina Asesora de Planeación"]
["Oficina asesora Jurídica"]
["Oficina de control interno"]
["Secretaria General"]
["Grupo de Archivo y Gestión Documental"]
["Grupo de Gestión Humana"]
["Grupo de Recursos Físicos"]
["Grupo de Compras y Adquisiciones"]
["Grupo de Gestión financiera"]
["Grupo de Sistemas"]
["Subdirección del Sistema Nacional de Archivos"]
["Grupo de Articulación y Desarrollo del SNA"]
["Grupo de Inspección y Vigilancia"]
["Grupo de Archivos Étnicos y Derechos Humanos"]
["Subdirección de tecnologías de la información archivística y documento Electronico"]
["Grupo de Gestión de Documentos y Preservación Digital"]
["Grupo de Innovación y Apropiación de Tecnologías de Información Archivística"]
["Subdirección de Gestión del patrimonio Documental"]
["Grupo de Conservación y Restauración del Patrimonio Documental"]
["Grupo de Investigación y Fondos Documentales Históricos"]
["Grupo de Organización, Descripción y Reprografía"]
["Grupo de Evaluación Documental y Transferencias Documentales Secundarias"]
["Subdirección de Asistencia Técnica y proyectos archivísticos"]
["Grupo de Gestión de Proyectos Archivisticos"]
["Grupo de Asistencia Tecnica"]
["Órganos de Asesoría y Coordinación"]
["Comité de dirección"]
["Comité de coordinación del sistema de control interno"]
["Comité interno de Archivo"]
["Grupo de Comunicaciones"]
["Sede Electronica"]